Workbook

Sheet Raw data
A1: Raw Data
B3: Control Group | F3: Treatment Group
B4: Patient | C4: Effect | D4: Cost | F4: Patient | G4: Effect | H4: Cost
B5: 1 | C5: 5.523022223 | D5: 3641.757438 | F5: 101 | G5: 8.44867953 | H5: 7674.242551
B6: 2 | C6: 5.191964663 | D6: 12121.52591 | F6: 102 | G6: 5.613549881 | H6: 7706.612046
B7: 3 | C7: 11.05141463 | D7: 5786.254801 | F7: 103 | G7: 3.126301614 | H7: 6530.94399
B8: 4 | C8: 9.578636621 | D8: 7900.48733 | F8: 104 | G8: 9.136828783 | H8: 18328.78552
B9: 5 | C9: 7.531006956 | D9: 13883.47877 | F9: 105 | G9: 4.949594592 | H9: 5949.474758
B10: 6 | C10: 6.924525696 | D10: 13344.61904 | F10: 106 | G10: 4.585321511 | H10: 6029.645031
B11: 7 | C11: 6.929599869 | D11: 5326.927359 | F11: 107 | G11: 1.078318325 | H11: 6136.046252
B12: 8 | C12: 3.11573289 | D12: 4004.521686 | F12: 108 | G12: 6.354948062 | H12: 6291.670917
B13: 9 | C13: 11.71142082 | D13: 6014.418777 | F13: 109 | G13: 9.647287374 | H13: 13825.65314
B14: 10 | C14: 6.118099262 | D14: 9322.032173 | F14: 110 | G14: 7.639100326 | H14: 7567.642343
B15: 11 | C15: 4.88901648 | D15: 3230.190786 | F15: 111 | G15: 5.750060364 | H15: 7055.212383
B16: 12 | C16: 3.769616975 | D16: 2868.176203 | F16: 112 | G16: 3.819616349 | H16: 6913.030839
B17: 13 | C17: 8.532585627 | D17: 5451.788942 | F17: 113 | G17: 13.19778105 | H17: 12882.23782
B18: 14 | C18: 6.318352662 | D18: 7685.287676 | F18: 114 | G18: 2.672681153 | H18: 13839.59325
B19: 15 | C19: 3.90346907 | D19: 3228.510419 | F19: 115 | G19: 8.234103391 | H19: 15783.23028
B20: 16 | C20: 4.199795298 | D20: 4520.682798 | F20: 116 | G20: 3.564789878 | H20: 5259.13716
B21: 17 | C21: 2.380459127 | D21: 1547.30767 | F21: 117 | G21: 9.969394571 | H21: 9842.288976
B22: 18 | C22: 5.104089923 | D22: 2879.771199 | F22: 118 | G22: 9.028616571 | H22: 15933.18969
B23: 19 | C23: 4.548774834 | D23: 3546.402597 | F23: 119 | G23: 13.63087092 | H23: 17970.13463
B24: 20 | C24: 9.591560253 | D24: 5646.980802 | F24: 120 | G24: 10.77669024 | H24: 20972.19296
B25: 21 | C25: 0.2873014006 | D25: 5738.298393 | F25: 121 | G25: 4.924267513 | H25: 5379.447039
B26: 22 | C26: 2.939577423 | D26: 1482.47376 | F26: 122 | G26: 1.551495319 | H26: 9871.206883
B27: 23 | C27: 4.302812942 | D27: 3009.210511 | F27: 123 | G27: 4.84472755 | H27: 12813.82846
B28: 24 | C28: 11.65328811 | D28: 7932.28004 | F28: 124 | G28: 1.29326108 | H28: 2254.859838
B29: 25 | C29: 1.903665087 | D29: 16030.08997 | F29: 125 | G29: 4.762060757 | H29: 6267.357199
B30: 26 | C30: 5.15252559 | D30: 3217.585179 | F30: 126 | G30: 11.21437835 | H30: 16389.35765
B31: 27 | C31: 5.844059201 | D31: 3219.017647 | F31: 127 | G31: 5.86250384 | H31: 9938.764449
B32: 28 | C32: 11.32105005 | D32: 6238.872227 | F32: 128 | G32: 8.018817187 | H32: 13424.81491
B33: 29 | C33: 9.670097761 | D33: 5240.382758 | F33: 129 | G33: -0.5477719098 | H33: 7050.920493
B34: 30 | C34: 6.501023106 | D34: 3169.310358 | F34: 130 | G34: 7.091158942 | H34: 6601.475773
B35: 31 | C35: 3.028690031 | D35: 6941.834828 | F35: 131 | G35: 5.778896706 | H35: 9044.445915
B36: 32 | C36: 2.078119927 | D36: 1198.153134 | F36: 132 | G36: 8.983835686 | H36: 14670.61744
B37: 33 | C37: 9.792536315 | D37: 5209.207426 | F37: 133 | G37: 14.26208243 | H37: 13960.90174
B38: 34 | C38: 6.427145514 | D38: 6911.366712 | F38: 134 | G38: 8.176802741 | H38: 10218.55508
B39: 35 | C39: 3.802938833 | D39: 2782.032566 | F39: 135 | G39: 9.54631494 | H39: 11034.97706
B40: 36 | C40: 10.12371957 | D40: 7571.044197 | F40: 136 | G40: 6.430610618 | H40: 6628.681563
B41: 37 | C41: 7.166424795 | D41: 5545.606082 | F41: 137 | G41: 0.8293611824 | H41: 3030.428788
B42: 38 | C42: 8.563372558 | D42: 3994.546503 | F42: 138 | G42: 13.83186844 | H42: 13091.20578
B43: 39 | C43: 0.5272826879 | D43: 11384.43257 | F43: 139 | G43: 12.06102779 | H43: 36909.61326
B44: 40 | C44: 3.038935002 | D44: 2514.203151 | F44: 140 | G44: 4.51035962 | H44: 6376.940519
B45: 41 | C45: 7.94118811 | D45: 14326.88676 | F45: 141 | G45: 10.27956177 | H45: 10257.10814
B46: 42 | C46: 12.23651816 | D46: 7825.657382 | F46: 142 | G46: 8.681236067 | H46: 8968.735516
B47: 43 | C47: 3.594762953 | D47: 2863.231532 | F47: 143 | G47: 13.52006977 | H47: 13868.58687
B48: 44 | C48: 1.668510826 | D48: 602.2512958 | F48: 144 | G48: 7.885932332 | H48: 12466.14988
B49: 45 | C49: 5.265843728 | D49: 5607.419394 | F49: 145 | G49: 7.261543323 | H49: 9557.01975
B50: 46 | C50: 0.4133346843 | D50: 2915.810356 | F50: 146 | G50: 6.06603058 | H50: 5980.894831
B51: 47 | C51: 8.078396592 | D51: 4134.242269 | F51: 147 | G51: 12.13694653 | H51: 12653.07804
B52: 48 | C52: 9.494370771 | D52: 5666.372641 | F52: 148 | G52: 0.8391341024 | H52: 2774.856392
B53: 49 | C53: 0.6142652574 | D53: 347.9300822 | F53: 149 | G53: 12.14376171 | H53: 11829.1268
B54: 50 | C54: 7.13653852 | D54: 5198.556581 | F54: 150 | G54: 6.004974041 | H54: 9379.380611
B55: 51 | C55: 9.329943446 | D55: 12358.13866 | F55: 151 | G55: 8.692717736 | H55: 12546.61934
B56: 52 | C56: 7.213075754 | D56: 3873.618824 | F56: 152 | G56: 6.629131142 | H56: 7874.346336
B57: 53 | C57: 1.481186385 | D57: 1227.661544 | F57: 153 | G57: 9.590074657 | H57: 20578.18875
B58: 54 | C58: 5.454316013 | D58: 4426.236192 | F58: 154 | G58: 14.35247768 | H58: 14355.00933
B59: 55 | C59: 6.059432678 | D59: 8149.110759 | F59: 155 | G59: 9.030213648 | H59: 10450.9649
B60: 56 | C60: 8.521897908 | D60: 5569.131847 | F60: 156 | G60: 6.894184099 | H60: 6688.924624
B61: 57 | C61: 6.188694281 | D61: 19103.85427 | F61: 157 | G61: 4.767787583 | H61: 6677.817605
B62: 58 | C62: 8.97214947 | D62: 5369.093799 | F62: 158 | G62: 6.787550928 | H62: 9897.965862
B63: 59 | C63: 5.11194006 | D63: 9440.854085 | F63: 159 | G63: 10.00765301 | H63: 9993.680236
B64: 60 | C64: 8.556658275 | D64: 5474.302952 | F64: 160 | G64: 4.959905499 | H64: 8413.977219
B65: 61 | C65: 6.433580486 | D65: 4568.047976 | F65: 161 | G65: 3.945815142 | H65: 5347.517718
B66: 62 | C66: 8.200095034 | D66: 4486.202603 | F66: 162 | G66: 8.699251517 | H66: 8758.435498
B67: 63 | C67: 5.912750621 | D67: 5913.89609 | F67: 163 | G67: 6.21207625 | H67: 7872.802159
B68: 64 | C68: 5.487554347 | D68: 14027.92656 | F68: 164 | G68: 13.47353277 | H68: 13098.03394
B69: 65 | C69: 7.000438106 | D69: 4841.281591 | F69: 165 | G69: 13.93814435 | H69: 13338.14757
B70: 66 | C70: 4.589090937 | D70: 3985.58593 | F70: 166 | G70: 10.12408571 | H70: 12918.65864
B71: 67 | C71: 4.668132474 | D71: 6670.638185 | F71: 167 | G71: 3.987701032 | H71: 6747.182429
B72: 68 | C72: -1.634983338 | D72: 5032.900051 | F72: 168 | G72: 0.3619489379 | H72: 4850.151248
B73: 69 | C73: 10.8901645 | D73: 9305.225992 | F73: 169 | G73: 10.26777075 | H73: 10235.81836
B74: 70 | C74: 5.098703086 | D74: 3069.345565 | F74: 170 | G74: 8.583769865 | H74: 8227.674832
B75: 71 | C75: 10.56307725 | D75: 5517.405809 | F75: 171 | G75: 11.12657211 | H75: 13769.32517
B76: 72 | C76: 12.26872335 | D76: 6182.673247 | F76: 172 | G76: 14.70843159 | H76: 14345.7055
B77: 73 | C77: 9.512652773 | D77: 4768.140248 | F77: 173 | G77: 5.425536427 | H77: 9668.622882
B78: 74 | C78: 5.100071648 | D78: 3148.543621 | F78: 174 | G78: 12.82212518 | H78: 12538.79717
B79: 75 | C79: 5.727781805 | D79: 3356.888755 | F79: 175 | G79: 5.186292549 | H79: 7339.102738
B80: 76 | C80: 3.745744129 | D80: 1971.162507 | F80: 176 | G80: 3.840108965 | H80: 4931.300648
B81: 77 | C81: 11.32464121 | D81: 7634.649743 | F81: 177 | G81: 2.139681735 | H81: 11003.81522
B82: 78 | C82: 4.35239333 | D82: 2980.662525 | F82: 178 | G82: 5.618277486 | H82: 7311.857415
B83: 79 | C83: 10.87501353 | D83: 11109.67876 | F83: 179 | G83: 8.675194666 | H83: 8539.921439
B84: 80 | C84: 7.672023286 | D84: 5023.02767 | F84: 180 | G84: 3.900844094 | H84: 5155.009534
B85: 81 | C85: 10.67296085 | D85: 9763.996731 | F85: 181 | G85: 5.68930617 | H85: 5706.355166
B86: 82 | C86: 3.471601306 | D86: 1677.746535 | F86: 182 | G86: 6.879787207 | H86: 6729.917029
B87: 83 | C87: 10.07039819 | D87: 7454.442667 | F87: 183 | G87: 4.286721437 | H87: 5057.211505
B88: 84 | C88: 14.14924984 | D88: 7425.346899 | F88: 184 | G88: 13.74649165 | H88: 14159.68728
B89: 85 | C89: 10.94809074 | D89: 9027.9219 | F89: 185 | G89: 4.388045211 | H89: 6599.775202
B90: 86 | C90: 4.206954236 | D90: 8743.502525 | F90: 186 | G90: 0.4252284095 | H90: 4934.898367
B91: 87 | C91: 6.489022728 | D91: 9353.782684 | F91: 187 | G91: 6.784496982 | H91: 8045.035707
B92: 88 | C92: 0.6293149218 | D92: 3964.295979 | F92: 188 | G92: 5.758363334 | H92: 8471.106264
B93: 89 | C93: 10.62923449 | D93: 7358.812725 | F93: 189 | G93: 6.578386372 | H93: 7607.384282
B94: 90 | C94: 3.726842189 | D94: 2838.204159 | F94: 190 | G94: 7.282468056 | H94: 7263.244576
B95: 91 | C95: 8.116580927 | D95: 115200.0266 | F95: 191 | G95: 6.367650531 | H95: 6437.792629
B96: 92 | C96: 5.392577071 | D96: 14707.58676 | F96: 192 | G96: 5.475083985 | H96: 6326.380985
B97: 93 | C97: 10.67730585 | D97: 6598.507617 | F97: 193 | G97: 6.341531361 | H97: 8331.847269
B98: 94 | C98: 6.036370087 | D98: 7500.021089 | F98: 194 | G98: 5.687662453 | H98: 6866.515359
B99: 95 | C99: 0.4120837718 | D99: 936.6991731 | F99: 195 | G99: 5.17788915 | H99: 8633.032887
B100: 96 | C100: 2.883178831 | D100: 5197.405447 | F100: 196 | G100: 7.568483187 | H100: 13351.10431
B101: 97 | C101: 11.62566294 | D101: 6231.841874 | F101: 197 | G101: 8.655633923 | H101: 10863.09347
B102: 98 | C102: 4.940115519 | D102: 8692.05113 | F102: 198 | G102: 7.525936334 | H102: 8810.739195
B103: 99 | C103: 8.208008557 | D103: 4141.773199 | F103: 199 | G103: 8.530981715 | H103: 14064.62143
B104: 100 | C104: 4.58315883 | D104: 3620.341153 | F104: 200 | G104: 0.8746548127 | H104: 1231.172126

Sheet Summary Statistics
A1: Summary Statistics
B3: Control Group | E3: Treatment Group
B4: Effect | C4: Cost | E4: Effect | F4: Cost
A5: mean | B5: =AVERAGE('Raw data'!C5:C104) -> 6.400270941 | C5: =AVERAGE('Raw data'!D5:D104) -> 7097.896218 | E5: =AVERAGE('Raw data'!G5:G104) -> 7.182434429 | F5: =AVERAGE('Raw data'!H5:H104) -> 9781.505905
A6: standard deviation | B6: =STDEV('Raw data'!C5:C104) -> 3.323907775 | C6: =STDEV('Raw data'!D5:D104) -> 11492.59426 | E6: =STDEV('Raw data'!G5:G104) -> 3.622846137 | F6: =STDEV('Raw data'!H5:H104) -> 4771.384747
A7: standard error | B7: =B6/SQRT(100) -> 0.3323907775 | C7: =C6/SQRT(100) -> 1149.259426 | E7: =E6/SQRT(100) -> 0.3622846137 | F7: =F6/SQRT(100) -> 477.1384747
B9: Difference
B10: Effect | C10: Cost
A11: mean | B11: =E5-B5 -> 0.7821634877 | C11: =F5-C5 -> 2683.609687
A12: standard error | B12: =SQRT(B7^2+E7^2) -> 0.4916642861 | C12: =SQRT(C7^2+F7^2) -> 1244.370666
A13: lower 95% limit | B13: =B11-NORMINV(0.975,0,1)*B12 -> -0.1814808056 | C13: =C11-NORMINV(0.975,0,1)*C12 -> 244.6879991
A14: upper 95% limit | B14: =B11+NORMINV(0.975,0,1)*B12 -> 1.745807781 | C14: =C11+NORMINV(0.975,0,1)*C12 -> 5122.531375
B16: ICER
A18: point estimate | B18: =C11/B11 -> 3431.008643
A21: correlation (control) | B21: =CORREL('Raw data'!C5:C104,'Raw data'!D5:D104) -> 0.1460997686
A22: correlation (treatment) | B22: =CORREL('Raw data'!G5:G104,'Raw data'!H5:H104) -> 0.6680315586
A23: correlation (difference) | B23: =(B21*B7*C7+B22*E7*F7)/(B12*C12) -> 0.2799655762

Sheet Bootstrapping
A1: Bootstrap Results
Z2: Rc | AA2: 50000
A3: The bootstrap resamples: | I3: Bootstrapped means for the: | Z3: pCE | AA3: =SUM(AA8:AA1007)/1000 -> 0.921 | AK3: pCE | AL3: =SUM(AL8:AL1007)/1000 -> 0.921
A5: Control Group | E5: Treatment Group | I5: Bootstrap | K5: Control group | O5: Treatment Group | R5: Differences | AF5: Bootstrapping net-benefits
A6: Patient | B6: Effect | C6: Cost | E6: Patient | F6: Effect | G6: Cost | I6: replication | K6: Effect | L6: Cost | O6: Effect | P6: Cost | R6: Effect | S6: Cost | U6: ICER | W6: Summary information for the ICER | AA6: CE? | AC6: Rc | AD6: pCE | AF6: NB | AH6: Summary information | AL6: CE?
A8: =INT(RAND()*100)+1 -> 14 | B8: =VLOOKUP(A8,control,2,1) -> 6.318352662 | C8: =VLOOKUP(A8,control,3,1) -> 7685.287676 | E8: =INT(RAND()*100)+101 -> 175 | F8: =VLOOKUP(E8,treatment,2,1) -> 5.186292549 | G8: =VLOOKUP(E8,treatment,3,1) -> 7339.102738 | I8: 1 | K8: 6.144067722 | L8: 5869.062186 | O8: 6.878252798 | P8: 9095.168777 | R8: =O8-K8 -> 0.7341850761 | S8: =P8-L8 -> 3226.106591 | U8: =S8/R8 -> 4394.132618 | W8: mean | X8: =AVERAGE($U$8:$U$1007) -> 6297.34955 | AA8: =IF(R8<0,IF(U8<Rc_,0,1),IF(U8<Rc_,1,0)) -> 1 | AC8: 0 | AD8: 0.024 | AF8: =R8*Rc_-S8 -> 33483.14721 | AH8: mean | AI8: =AVERAGE($AF$8:$AF$1007) -> 35067.30281 | AL8: =IF(AF8>0,1,0) -> 1
A9: =INT(RAND()*100)+1 -> 32 | B9: 2.078119927 | C9: 1198.153134 | E9: =INT(RAND()*100)+101 -> 115 | F9: 8.234103391 | G9: 15783.23028 | I9: 2 | K9: 5.738884963 | L9: 5934.345125 | O9: 7.311291645 | P9: 9762.163585 | R9: 1.572406681 | S9: 3827.81846 | U9: 2434.369241 | W9: Standard deviation | X9: =STDEV($U$8:$U$1007) -> 98188.97859 | AA9: 1 | AC9: 1000 | AD9: 0.068 | AF9: 74792.51561 | AH9: Standard deviation | AI9: =STDEV($AF$8:$AF$1007) -> 24069.54814 | AL9: 1
A10: 40 | B10: 3.038935002 | C10: 2514.203151 | E10: 139 | F10: 12.06102779 | G10: 36909.61326 | I10: 3 | K10: 6.380526076 | L10: 7412.398463 | O10: 7.32577124 | P10: 9414.003821 | R10: 0.9452451645 | S10: 2001.605358 | U10: 2117.551545 | W10: Median | X10: =MEDIAN($U$8:$U$1007) -> 3219.918059 | AA10: 1 | AC10: 2000 | AD10: 0.193 | AF10: 45260.65287 | AH10: Median | AI10: =MEDIAN($AF$8:$AF$1007) -> 35048.80902 | AL10: 1
A11: 7 | B11: 6.929599869 | C11: 5326.927359 | E11: 143 | F11: 13.52006977 | G11: 13868.58687 | I11: 4 | K11: 6.518743033 | L11: 8213.186096 | O11: 7.248064423 | P11: 9821.383751 | R11: 0.7293213894 | S11: 1608.197655 | U11: 2205.060319 | W11: 2.5th percentile | X11: =PERCENTILE($U$8:$U$1007, 0.025) -> -18120.44293 | AA11: 1 | AC11: 3000 | AD11: 0.394 | AF11: 34857.87181 | AH11: 2.5th percentile | AI11: =PERCENTILE($AF$8:$AF$1007,0.025) -> -12475.7901 | AL11: 1
A12: 31 | B12: 3.028690031 | C12: 6941.834828 | E12: 194 | F12: 5.687662453 | G12: 6866.515359 | I12: 5 | K12: 6.803783288 | L12: 6482.44964 | O12: 6.830522515 | P12: 9774.93734 | R12: 0.0267392266 | S12: 3292.487701 | U12: 123133.2435 | W12: 97.5th percentile | X12: =PERCENTILE($U$8:$U$1007,0.975) -> 20819.99396 | AA12: 0 | AC12: 4000 | AD12: 0.548 | AF12: -1955.52637 | AH12: 97.5th percentile | AI12: =PERCENTILE($AF$8:$AF$1007,0.975) -> 80161.96698 | AL12: 0
A13: 74 | B13: 5.100071648 | C13: 3148.543621 | E13: 119 | F13: 13.63087092 | G13: 17970.13463 | I13: 6 | K13: 6.605839538 | L13: 6360.927761 | O13: 7.733060496 | P13: 10470.78803 | R13: 1.127220958 | S13: 4109.860272 | U13: 3646.011232 | W13: min | X13: =MIN($U$8:$U$1007) -> -1074126.255 | AA13: 1 | AC13: 5000 | AD13: 0.674 | AF13: 52251.18761 | AH13: min | AI13: =MIN($AF$8:$AF$1007) -> -38465.99223 | AL13: 1
A14: 55 | B14: 6.059432678 | C14: 8149.110759 | E14: 153 | F14: 9.590074657 | G14: 20578.18875 | I14: 7 | K14: 6.067838126 | L14: 5544.224695 | O14: 6.965357058 | P14: 9387.899999 | R14: 0.8975189314 | S14: 3843.675304 | U14: 4282.556244 | W14: max | X14: =MAX($U$8:$U$1007) -> 1927417.631 | AA14: 1 | AC14: 6000 | AD14: 0.744 | AF14: 41032.27127 | AH14: max | AI14: =MAX($AF$8:$AF$1007) -> 136557.7422 | AL14: 1
A15: 49 | B15: 0.6142652574 | C15: 347.9300822 | E15: 200 | F15: 0.8746548127 | G15: 1231.172126 | I15: 8 | K15: 6.052475807 | L15: 5917.394702 | O15: 7.531427114 | P15: 10582.0421 | R15: 1.478951307 | S15: 4664.647396 | U15: 3154.023648 | AA15: 1 | AC15: 7000 | AD15: 0.789 | AF15: 69282.91795 | AL15: 1
A16: 87 | B16: 6.489022728 | C16: 9353.782684 | E16: 177 | F16: 2.139681735 | G16: 11003.81522 | I16: 9 | K16: 7.43850063 | L16: 7125.130715 | O16: 7.330694624 | P16: 9239.345448 | R16: -0.1078060055 | S16: 2114.214733 | U16: -19611.28904 | AA16: 0 | AC16: 8000 | AD16: 0.815 | AF16: -7504.515005 | AL16: 0
A17: 37 | B17: 7.166424795 | C17: 5545.606082 | E17: 161 | F17: 3.945815142 | G17: 5347.517718 | I17: 10 | K17: 7.319962501 | L17: 6208.270052 | O17: 6.795380701 | P17: 9549.589695 | R17: -0.5245817996 | S17: 3341.319643 | U17: -6369.492129 | W17: Bin Range | X17: Bin | Y17: Frequency | AA17: 0 | AC17: 9000 | AD17: 0.83 | AF17: -29570.40962 | AH17: Bin Range | AI17: Bin | AJ17: Frequency | AL17: 0
A18: 24 | B18: 11.65328811 | C18: 7932.28004 | E18: 119 | F18: 13.63087092 | G18: 17970.13463 | I18: 11 | K18: 5.857352852 | L18: 5146.753078 | O18: 6.885486296 | P18: 10499.41514 | R18: 1.028133443 | S18: 5352.662063 | U18: 5206.193902 | W18: -20000 | X18: -20000 | Y18: 25 | AA18: 1 | AC18: 10000 | AD18: 0.846 | AF18: 46054.0101 | AH18: -10000 | AI18: -10000 | AJ18: 0 | AL18: 1
A19: 97 | B19: 11.62566294 | C19: 6231.841874 | E19: 196 | F19: 7.568483187 | G19: 13351.10431 | I19: 12 | K19: 6.238748223 | L19: 6184.162637 | O19: 7.071665988 | P19: 10112.68757 | R19: 0.8329177653 | S19: 3928.524936 | U19: 4716.581995 | W19: -18000 | X19: -18000 | Y19: 1 | AA19: 1 | AC19: 11000 | AD19: 0.862 | AF19: 37717.36333 | AH19: -9000 | AI19: -9000 | AJ19: 0 | AL19: 1
A20: 26 | B20: 5.15252559 | C20: 3217.585179 | E20: 150 | F20: 6.004974041 | G20: 9379.380611 | I20: 13 | K20: 6.221708271 | L20: 8168.502651 | O20: 6.956055692 | P20: 9992.300842 | R20: 0.7343474215 | S20: 1823.79819 | U20: 2483.563143 | W20: -16000 | X20: -16000 | Y20: 2 | AA20: 1 | AC20: 12000 | AD20: 0.873 | AF20: 34893.57289 | AH20: -8000 | AI20: -8000 | AJ20: 2 | AL20: 1
A21: 24 | B21: 11.65328811 | C21: 7932.28004 | E21: 160 | F21: 4.959905499 | G21: 8413.977219 | I21: 14 | K21: 6.224042221 | L21: 8214.759184 | O21: 7.377651712 | P21: 9865.982987 | R21: 1.153609491 | S21: 1651.223803 | U21: 1431.354212 | W21: -14000 | X21: -14000 | Y21: 0 | AA21: 1 | AC21: 13000 | AD21: 0.879 | AF21: 56029.25074 | AH21: -7000 | AI21: -7000 | AJ21: 0 | AL21: 1
A22: 70 | B22: 5.098703086 | C22: 3069.345565 | E22: 138 | F22: 13.83186844 | G22: 13091.20578 | I22: 15 | K22: 6.349024585 | L22: 7153.761493 | O22: 6.991010659 | P22: 10319.63507 | R22: 0.6419860744 | S22: 3165.873581 | U22: 4931.374226 | W22: -12000 | X22: -12000 | Y22: 1 | AA22: 1 | AC22: 14000 | AD22: 0.889 | AF22: 28933.43014 | AH22: -6000 | AI22: -6000 | AJ22: 8 | AL22: 1
A23: 79 | B23: 10.87501353 | C23: 11109.67876 | E23: 144 | F23: 7.885932332 | G23: 12466.14988 | I23: 16 | K23: 6.591211073 | L23: 7070.761004 | O23: 7.518980393 | P23: 9984.496531 | R23: 0.9277693203 | S23: 2913.735527 | U23: 3140.581891 | W23: -10000 | X23: -10000 | Y23: 0 | AA23: 1 | AC23: 15000 | AD23: 0.893 | AF23: 43474.73049 | AH23: -5000 | AI23: -5000 | AJ23: 13 | AL23: 1
A24: 79 | B24: 10.87501353 | C24: 11109.67876 | E24: 158 | F24: 6.787550928 | G24: 9897.965862 | I24: 17 | K24: 5.861674146 | L24: 6139.547694 | O24: 6.856985786 | P24: 9773.22553 | R24: 0.9953116407 | S24: 3633.677836 | U24: 3650.794071 | W24: -8000 | X24: -8000 | Y24: 2 | AA24: 1 | AC24: 16000 | AD24: 0.897 | AF24: 46131.9042 | AH24: -4000 | AI24: -4000 | AJ24: 14 | AL24: 1
A25: 44 | B25: =VLOOKUP(A25,control,2,1) -> 1.668510826 | C25: =VLOOKUP(A25,control,3,1) -> 602.2512958 | E25: 189 | F25: =VLOOKUP(E25,treatment,2,1) -> 6.578386372 | G25: =VLOOKUP(E25,treatment,3,1) -> 7607.384282 | I25: 18 | K25: 6.430584225 | L25: 6102.474162 | O25: 6.868462363 | P25: 9507.007598 | R25: 0.4378781372 | S25: 3404.533436 | U25: 7775.070611 | W25: -6000 | X25: -6000 | Y25: 2 | AA25: 1 | AC25: 17000 | AD25: 0.897 | AF25: 18489.37342 | AH25: -3000 | AI25: -3000 | AJ25: 38 | AL25: 1
A26: 56 | B26: 8.521897908 | C26: 5569.131847 | E26: 169 | F26: 10.26777075 | G26: 10235.81836 | I26: 19 | K26: 6.848070366 | L26: 7429.415009 | O26: 7.18493782 | P26: 9714.422995 | R26: 0.3368674532 | S26: 2285.007986 | U26: 6783.107018 | W26: -4000 | X26: -4000 | Y26: 4 | AA26: 1 | AC26: 18000 | AD26: 0.9 | AF26: 14558.36467 | AH26: -2000 | AI26: -2000 | AJ26: 30 | AL26: 1
A27: 50 | B27: 7.13653852 | C27: 5198.556581 | E27: 167 | F27: 3.987701032 | G27: 6747.182429 | I27: 20 | K27: 5.693590957 | L27: 6587.695351 | O27: 7.280374194 | P27: 9637.990829 | R27: 1.586783238 | S27: 3050.295478 | U27: 1922.313903 | W27: -2000 | X27: -2000 | Y27: 6 | AA27: 1 | AC27: 19000 | AD27: 0.903 | AF27: 76288.8664 | AH27: -1000 | AI27: -1000 | AJ27: 52 | AL27: 1
A28: 41 | B28: 7.94118811 | C28: 14326.88676 | E28: 138 | F28: 13.83186844 | G28: 13091.20578 | I28: 21 | K28: 6.030393626 | L28: 5367.577425 | O28: 7.691213795 | P28: 10629.45198 | R28: 1.660820169 | S28: 5261.874557 | U28: 3168.238593 | W28: 0 | X28: 0 | Y28: 21 | AA28: 1 | AC28: 20000 | AD28: 0.906 | AF28: 77779.13391 | AH28: 0 | AI28: 0 | AJ28: 66 | AL28: 1
A29: 94 | B29: 6.036370087 | C29: 7500.021089 | E29: 109 | F29: 9.647287374 | G29: 13825.65314 | I29: 22 | K29: 6.648519178 | L29: 7697.363644 | O29: 6.744950718 | P29: 9745.759061 | R29: 0.09643154015 | S29: 2048.395417 | U29: 21241.96517 | W29: 2000 | X29: 2000 | Y29: 107 | AA29: 1 | AC29: 21000 | AD29: 0.91 | AF29: 2773.18159 | AH29: 1000 | AI29: 1000 | AJ29: 80 | AL29: 1
A30: 84 | B30: 14.14924984 | C30: 7425.346899 | E30: 167 | F30: 3.987701032 | G30: 6747.182429 | I30: 23 | K30: 6.47942027 | L30: 6021.453888 | O30: 7.150503545 | P30: 10018.97457 | R30: 0.6710832748 | S30: 3997.520679 | U30: 5956.817625 | W30: 4000 | X30: 4000 | Y30: 213 | AA30: 1 | AC30: 22000 | AD30: 0.912 | AF30: 29556.64306 | AH30: 2000 | AI30: 2000 | AJ30: 104 | AL30: 1
A31: 9 | B31: 11.71142082 | C31: 6014.418777 | E31: 194 | F31: 5.687662453 | G31: 6866.515359 | I31: 24 | K31: 6.312239552 | L31: 8183.045401 | O31: 7.090879134 | P31: 10156.55144 | R31: 0.7786395818 | S31: 1973.506035 | U31: 2534.556528 | W31: 6000 | X31: 6000 | Y31: 192 | AA31: 1 | AC31: 23000 | AD31: 0.914 | AF31: 36958.47306 | AH31: 3000 | AI31: 3000 | AJ31: 109 | AL31: 1
A32: 74 | B32: 5.100071648 | C32: 3148.543621 | E32: 190 | F32: 7.282468056 | G32: 7263.244576 | I32: 25 | K32: 6.364516319 | L32: 5622.07025 | O32: 6.709740349 | P32: 9677.569819 | R32: 0.3452240299 | S32: 4055.499569 | U32: 11747.44287 | W32: 8000 | X32: 8000 | Y32: 143 | AA32: 1 | AC32: 24000 | AD32: 0.916 | AF32: 13205.70193 | AH32: 4000 | AI32: 4000 | AJ32: 118 | AL32: 1
A33: 47 | B33: 8.078396592 | C33: 4134.242269 | E33: 138 | F33: 13.83186844 | G33: 13091.20578 | I33: 26 | K33: 6.172304297 | L33: 5903.19233 | O33: 6.685554238 | P33: 9098.955011 | R33: 0.5132499409 | S33: 3195.762681 | U33: 6226.523232 | W33: 10000 | X33: 10000 | Y33: 92 | AA33: 1 | AC33: 25000 | AD33: 0.916 | AF33: 22466.73436 | AH33: 5000 | AI33: 5000 | AJ33: 108 | AL33: 1
A34: 90 | B34: 3.726842189 | C34: 2838.204159 | E34: 184 | F34: 13.74649165 | G34: 14159.68728 | I34: 27 | K34: 6.582601679 | L34: 6221.603691 | O34: 7.208482945 | P34: 9868.213856 | R34: 0.625881266 | S34: 3646.610165 | U34: 5826.360946 | W34: 12000 | X34: 12000 | Y34: 47 | AA34: 1 | AC34: 26000 | AD34: 0.917 | AF34: 27647.45313 | AH34: 6000 | AI34: 6000 | AJ34: 73 | AL34: 1
A35: 18 | B35: 5.104089923 | C35: 2879.771199 | E35: 166 | F35: 10.12408571 | G35: 12918.65864 | I35: 28 | K35: 6.08478071 | L35: 7617.331945 | O35: 7.805192902 | P35: 9993.00945 | R35: 1.720412193 | S35: 2375.677504 | U35: 1380.876929 | W35: 14000 | X35: 14000 | Y35: 30 | AA35: 1 | AC35: 27000 | AD35: 0.918 | AF35: 83644.93212 | AH35: 7000 | AI35: 7000 | AJ35: 65 | AL35: 1
A36: 96 | B36: 2.883178831 | C36: 5197.405447 | E36: 167 | F36: 3.987701032 | G36: 6747.182429 | I36: 29 | K36: 5.848171367 | L36: 8950.987288 | O36: 6.565418954 | P36: 8632.783989 | R36: 0.7172475866 | S36: -318.2032987 | U36: -443.6449904 | W36: 16000 | X36: 16000 | Y36: 15 | AA36: 1 | AC36: 28000 | AD36: 0.918 | AF36: 36180.58263 | AH36: 8000 | AI36: 8000 | AJ36: 56 | AL36: 1
A37: 85 | B37: 10.94809074 | C37: 9027.9219 | E37: 169 | F37: 10.26777075 | G37: 10235.81836 | I37: 30 | K37: 6.368551304 | L37: 7111.694859 | O37: 6.873776579 | P37: 9633.053639 | R37: 0.5052252752 | S37: 2521.35878 | U37: 4990.563425 | W37: 18000 | X37: 18000 | Y37: 14 | AA37: 1 | AC37: 29000 | AD37: 0.918 | AF37: 22739.90498 | AH37: 9000 | AI37: 9000 | AJ37: 30 | AL37: 1
A38: 13 | B38: 8.532585627 | C38: 5451.788942 | E38: 146 | F38: 6.06603058 | G38: 5980.894831 | I38: 31 | K38: 6.125865956 | L38: 6728.504833 | O38: 7.035804404 | P38: 9184.674356 | R38: 0.9099384478 | S38: 2456.169523 | U38: 2699.269966 | W38: 20000 | X38: 20000 | Y38: 12 | AA38: 1 | AC38: 30000 | AD38: 0.919 | AF38: 43040.75287 | AH38: 10000 | AI38: 10000 | AJ38: 18 | AL38: 1
A39: 35 | B39: 3.802938833 | C39: 2782.032566 | E39: 120 | F39: 10.77669024 | G39: 20972.19296 | I39: 32 | K39: 6.069519972 | L39: 5811.87455 | O39: 8.159187019 | P39: 10847.83705 | R39: 2.089667047 | S39: 5035.962504 | U39: 2409.935358 | W39: 22000 | X39: 22000 | Y39: 7 | AA39: 1 | AC39: 31000 | AD39: 0.919 | AF39: 99447.38987 | AH39: 11000 | AI39: 11000 | AJ39: 12 | AL39: 1
A40: 30 | B40: 6.501023106 | C40: 3169.310358 | E40: 171 | F40: 11.12657211 | G40: 13769.32517 | I40: 33 | K40: 6.86961449 | L40: 6345.318039 | O40: 7.143227225 | P40: 9894.240982 | R40: 0.2736127351 | S40: 3548.922943 | U40: 12970.60585 | W40: 24000 | X40: 24000 | Y40: 8 | AA40: 1 | AC40: 32000 | AD40: 0.919 | AF40: 10131.71381 | AH40: 12000 | AI40: 12000 | AJ40: 2 | AL40: 1
A41: 20 | B41: 9.591560253 | C41: 5646.980802 | E41: 170 | F41: 8.583769865 | G41: 8227.674832 | I41: 34 | K41: 6.591768944 | L41: 7382.386229 | O41: 7.431870816 | P41: 10045.03004 | R41: 0.8401018714 | S41: 2662.643807 | U41: 3169.429682 | W41: 26000 | X41: 26000 | Y41: 3 | AA41: 1 | AC41: 33000 | AD41: 0.919 | AF41: 39342.44976 | AH41: 13000 | AI41: 13000 | AJ41: 2 | AL41: 1
A42: 55 | B42: 6.059432678 | C42: 8149.110759 | E42: 134 | F42: 8.176802741 | G42: 10218.55508 | I42: 35 | K42: 6.547618652 | L42: 7551.448652 | O42: 6.918181995 | P42: 9866.065226 | R42: 0.3705633428 | S42: 2314.616574 | U42: 6246.210314 | W42: 28000 | X42: 28000 | Y42: 4 | AA42: 1 | AC42: 34000 | AD42: 0.919 | AF42: 16213.55056 | AH42: 14000 | AI42: 14000 | AJ42: 0 | AL42: 1
A43: 6 | B43: 6.924525696 | C43: 13344.61904 | E43: 153 | F43: 9.590074657 | G43: 20578.18875 | I43: 36 | K43: 6.812161651 | L43: 7636.696425 | O43: 7.233963827 | P43: 9425.916704 | R43: 0.4218021761 | S43: 1789.220279 | U43: 4241.846961 | W43: 30000 | X43: 30000 | Y43: 1 | AA43: 1 | AC43: 35000 | AD43: 0.92 | AF43: 19300.88853 | AH43: 15000 | AI43: 15000 | AJ43: 0 | AL43: 1
A44: 16 | B44: 4.199795298 | C44: 4520.682798 | E44: 178 | F44: 5.618277486 | G44: 7311.857415 | I44: 37 | K44: 5.939259455 | L44: 8555.889661 | O44: 7.136193215 | P44: 9090.519309 | R44: 1.196933761 | S44: 534.6296478 | U44: 446.6660273 | W44: 32000 | X44: 32000 | Y44: 4 | AA44: 1 | AC44: 36000 | AD44: 0.92 | AF44: 59312.05838 | AH44: 16000 | AI44: 16000 | AJ44: 0 | AL44: 1
A45: 16 | B45: 4.199795298 | C45: 4520.682798 | E45: 163 | F45: 6.21207625 | G45: 7872.802159 | I45: 38 | K45: 6.602938823 | L45: 8379.380974 | O45: 6.702921364 | P45: 9765.84774 | R45: 0.09998254131 | S45: 1386.466766 | U45: 13867.08867 | W45: 34000 | X45: 34000 | Y45: 3 | AA45: 1 | AC45: 37000 | AD45: 0.92 | AF45: 3612.6603 | AH45: 17000 | AI45: 17000 | AJ45: 0 | AL45: 1
A46: 25 | B46: 1.903665087 | C46: 16030.08997 | E46: 115 | F46: 8.234103391 | G46: 15783.23028 | I46: 39 | K46: 6.005593182 | L46: 6923.514748 | O46: 7.223857764 | P46: 9765.887665 | R46: 1.218264582 | S46: 2842.372917 | U46: 2333.132687 | W46: 36000 | X46: 36000 | Y46: 1 | AA46: 1 | AC46: 38000 | AD46: 0.92 | AF46: 58070.85617 | AH46: 18000 | AI46: 18000 | AJ46: 0 | AL46: 1
A47: 65 | B47: 7.000438106 | C47: 4841.281591 | E47: 162 | F47: 8.699251517 | G47: 8758.435498 | I47: 40 | K47: 6.246615513 | L47: 5866.460121 | O47: 7.113740027 | P47: 10144.62219 | R47: 0.8671245139 | S47: 4278.16207 | U47: 4933.73443 | W47: 38000 | X47: 38000 | Y47: 4 | AA47: 1 | AC47: 39000 | AD47: 0.92 | AF47: 39078.06363 | AH47: 19000 | AI47: 19000 | AJ47: 0 | AL47: 1
A48: 2 | B48: 5.191964663 | C48: 12121.52591 | E48: 161 | F48: 3.945815142 | G48: 5347.517718 | I48: 41 | K48: 5.740252079 | L48: 8773.247453 | O48: 7.102795835 | P48: 9647.689764 | R48: 1.362543756 | S48: 874.4423108 | U48: 641.7719115 | W48: 40000 | X48: 40000 | Y48: 2 | AA48: 1 | AC48: 40000 | AD48: 0.92 | AF48: 67252.74548 | AH48: 20000 | AI48: 20000 | AJ48: 0 | AL48: 1
A49: 25 | B49: 1.903665087 | C49: 16030.08997 | E49: 146 | F49: 6.06603058 | G49: 5980.894831 | I49: 42 | K49: 6.307134339 | L49: 6636.308907 | O49: 6.898427961 | P49: 9266.291136 | R49: 0.5912936219 | S49: 2629.982228 | U49: 4447.844744 | W49: 42000 | X49: 42000 | Y49: 1 | AA49: 1 | AC49: 41000 | AD49: 0.92 | AF49: 26934.69887 | AI49: More | AJ49: 0 | AL49: 1
A50: 63 | B50: 5.912750621 | C50: 5913.89609 | E50: 176 | F50: 3.840108965 | G50: 4931.300648 | I50: 43 | K50: 5.57949067 | L50: 4771.915804 | O50: 7.343445062 | P50: 10133.62995 | R50: 1.763954392 | S50: 5361.714145 | U50: 3039.599078 | W50: 44000 | X50: 44000 | Y50: 2 | AA50: 1 | AC50: 42000 | AD50: 0.92 | AF50: 82836.00547 | AL50: 1
A51: 10 | B51: 6.118099262 | C51: 9322.032173 | E51: 197 | F51: 8.655633923 | G51: 10863.09347 | I51: 44 | K51: 6.784735568 | L51: 7169.390762 | O51: 7.665694555 | P51: 9945.747515 | R51: 0.8809589865 | S51: 2776.356753 | U51: 3151.516467 | W51: 46000 | X51: 46000 | Y51: 1 | AA51: 1 | AC51: 43000 | AD51: 0.92 | AF51: 41271.59257 | AL51: 1
A52: 31 | B52: 3.028690031 | C52: 6941.834828 | E52: 150 | F52: 6.004974041 | G52: 9379.380611 | I52: 45 | K52: 5.848639976 | L52: 7378.683588 | O52: 7.162943813 | P52: 9448.283187 | R52: 1.314303837 | S52: 2069.599599 | U52: 1574.673634 | W52: 48000 | X52: 48000 | Y52: 2 | AA52: 1 | AC52: 44000 | AD52: 0.92 | AF52: 63645.59225 | AL52: 1
A53: 68 | B53: -1.634983338 | C53: 5032.900051 | E53: 102 | F53: 5.613549881 | G53: 7706.612046 | I53: 46 | K53: 5.824947795 | L53: 7179.772696 | O53: 7.220295474 | P53: 9854.763618 | R53: 1.395347678 | S53: 2674.990922 | U53: 1917.07842 | W53: 50000 | X53: 50000 | Y53: 1 | AA53: 1 | AC53: 45000 | AD53: 0.92 | AF53: 67092.39298 | AL53: 1
A54: 40 | B54: 3.038935002 | C54: 2514.203151 | E54: 136 | F54: 6.430610618 | G54: 6628.681563 | I54: 47 | K54: 5.829049163 | L54: 6540.214448 | O54: 6.992916773 | P54: 9459.935842 | R54: 1.16386761 | S54: 2919.721394 | U54: 2508.637037 | W54: 52000 | X54: 52000 | Y54: 0 | AA54: 1 | AC54: 46000 | AD54: 0.92 | AF54: 55273.65913 | AL54: 1
A55: 44 | B55: 1.668510826 | C55: 602.2512958 | E55: 116 | F55: 3.564789878 | G55: 5259.13716 | I55: 48 | K55: 6.370778462 | L55: 5950.886561 | O55: 7.240369685 | P55: 9200.987614 | R55: 0.8695912225 | S55: 3250.101053 | U55: 3737.504437 | W55: 54000 | X55: 54000 | Y55: 2 | AA55: 1 | AC55: 47000 | AD55: 0.921 | AF55: 40229.46007 | AL55: 1
A56: 44 | B56: 1.668510826 | C56: 602.2512958 | E56: 156 | F56: 6.894184099 | G56: 6688.924624 | I56: 49 | K56: 6.289540927 | L56: 6686.566285 | O56: 7.274684416 | P56: 10175.34692 | R56: 0.9851434884 | S56: 3488.780631 | U56: 3541.393383 | W56: 56000 | X56: 56000 | Y56: 1 | AA56: 1 | AC56: 48000 | AD56: 0.921 | AF56: 45768.39379 | AL56: 1
A57: 5 | B57: 7.531006956 | C57: 13883.47877 | E57: 180 | F57: 3.900844094 | G57: 5155.009534 | I57: 50 | K57: 6.310021699 | L57: 6468.702482 | O57: 7.555318787 | P57: 9877.28289 | R57: 1.245297088 | S57: 3408.580408 | U57: 2737.162434 | W57: 58000 | X57: 58000 | Y57: 0 | AA57: 1 | AC57: 49000 | AD57: 0.921 | AF57: 58856.27399 | AL57: 1
A58: 57 | B58: 6.188694281 | C58: 19103.85427 | E58: 152 | F58: 6.629131142 | G58: 7874.346336 | I58: 51 | K58: 6.314133092 | L58: 6980.982096 | O58: 7.092927855 | P58: 9392.545757 | R58: 0.7787947637 | S58: 2411.563661 | U58: 3096.532968 | W58: 60000 | X58: 60000 | Y58: 0 | AA58: 1 | AC58: 50000 | AD58: 0.921 | AF58: 36528.17453 | AL58: 1
A59: 76 | B59: 3.745744129 | C59: 1971.162507 | E59: 124 | F59: 1.29326108 | G59: 2254.859838 | I59: 52 | K59: 6.033577869 | L59: 8348.586444 | O59: 7.237171684 | P59: 9354.334515 | R59: 1.203593815 | S59: 1005.748071 | U59: 835.6208367 | X59: More | Y59: 24 | AA59: 1 | AF59: 59173.94268 | AL59: 1
A60: 25 | B60: 1.903665087 | C60: 16030.08997 | E60: 137 | F60: 0.8293611824 | G60: 3030.428788 | I60: 53 | K60: 6.180309709 | L60: 8470.960507 | O60: 7.693851608 | P60: 9962.725242 | R60: 1.5135419 | S60: 1491.764734 | U60: 985.6117854 | AA60: 1 | AF60: 74185.33025 | AL60: 1
A61: 34 | B61: 6.427145514 | C61: 6911.366712 | E61: 198 | F61: 7.525936334 | G61: 8810.739195 | I61: 54 | K61: 6.421363965 | L61: 5865.575776 | O61: 7.115606128 | P61: 10075.95321 | R61: 0.6942421635 | S61: 4210.377439 | U61: 6064.710069 | AA61: 1 | AF61: 30501.73074 | AL61: 1
A62: 52 | B62: 7.213075754 | C62: 3873.618824 | E62: 131 | F62: 5.778896706 | G62: 9044.445915 | I62: 55 | K62: 6.323950386 | L62: 5980.378623 | O62: 7.508217011 | P62: 10395.08509 | R62: 1.184266626 | S62: 4414.706462 | U62: 3727.797749 | AA62: 1 | AF62: 54798.62482 | AL62: 1
A63: 81 | B63: 10.67296085 | C63: 9763.996731 | E63: 151 | F63: 8.692717736 | G63: 12546.61934 | I63: 56 | K63: 7.327928666 | L63: 6044.488551 | O63: 7.369314187 | P63: 9910.792411 | R63: 0.04138552096 | S63: 3866.30386 | U63: 93421.65496 | AA63: 0 | AF63: -1797.027811 | AL63: 0
A64: 70 | B64: 5.098703086 | C64: 3069.345565 | E64: 172 | F64: 14.70843159 | G64: 14345.7055 | I64: 57 | K64: 6.826937518 | L64: 7601.995895 | O64: 7.315960927 | P64: 10141.98374 | R64: 0.4890234086 | S64: 2539.987841 | U64: 5194.000525 | AA64: 1 | AF64: 21911.18259 | AL64: 1
A65: 84 | B65: 14.14924984 | C65: 7425.346899 | E65: 124 | F65: 1.29326108 | G65: 2254.859838 | I65: 58 | K65: 6.082647979 | L65: 6038.389606 | O65: 7.496156904 | P65: 9784.418825 | R65: 1.413508925 | S65: 3746.029219 | U65: 2650.163117 | AA65: 1 | AF65: 66929.41703 | AL65: 1
A66: 7 | B66: 6.929599869 | C66: 5326.927359 | E66: 160 | F66: 4.959905499 | G66: 8413.977219 | I66: 59 | K66: 6.089974179 | L66: 7795.859783 | O66: 6.898511086 | P66: 9241.713975 | R66: 0.8085369075 | S66: 1445.854192 | U66: 1788.235241 | AA66: 1 | AF66: 38980.99118 | AL66: 1
A67: 61 | B67: 6.433580486 | C67: 4568.047976 | E67: 141 | F67: 10.27956177 | G67: 10257.10814 | I67: 60 | K67: 6.086942273 | L67: 7021.140158 | O67: 7.654669185 | P67: 9894.456814 | R67: 1.567726912 | S67: 2873.316656 | U67: 1832.791562 | AA67: 1 | AF67: 75513.02895 | AL67: 1
A68: 53 | B68: 1.481186385 | C68: 1227.661544 | E68: 174 | F68: 12.82212518 | G68: 12538.79717 | I68: 61 | K68: 6.414366656 | L68: 7134.464819 | O68: 7.349228639 | P68: 9530.558708 | R68: 0.9348619832 | S68: 2396.093889 | U68: 2563.045596 | AA68: 1 | AF68: 44347.00527 | AL68: 1
A69: 85 | B69: 10.94809074 | C69: 9027.9219 | E69: 153 | F69: 9.590074657 | G69: 20578.18875 | I69: 62 | K69: 6.103560696 | L69: 6727.098726 | O69: 6.699749247 | P69: 9356.093554 | R69: 0.5961885514 | S69: 2628.994828 | U69: 4409.670098 | AA69: 1 | AF69: 27180.43274 | AL69: 1
A70: 16 | B70: 4.199795298 | C70: 4520.682798 | E70: 167 | F70: 3.987701032 | G70: 6747.182429 | I70: 63 | K70: 6.984046584 | L70: 6946.97023 | O70: 6.914161527 | P70: 9229.916246 | R70: -0.06988505617 | S70: 2282.946015 | U70: -32667.15576 | AA70: 0 | AF70: -5777.198824 | AL70: 0
A71: 63 | B71: 5.912750621 | C71: 5913.89609 | E71: 115 | F71: 8.234103391 | G71: 15783.23028 | I71: 64 | K71: 6.434212906 | L71: 6224.585989 | O71: 6.824113461 | P71: 9174.602336 | R71: 0.3899005546 | S71: 2950.016347 | U71: 7566.07374 | AA71: 1 | AF71: 16545.01138 | AL71: 1
A72: 88 | B72: 0.6293149218 | C72: 3964.295979 | E72: 200 | F72: 0.8746548127 | G72: 1231.172126 | I72: 65 | K72: 7.187338827 | L72: 7240.068432 | O72: 7.473820514 | P72: 9634.316055 | R72: =O72-K72 -> 0.2864816876 | S72: =P72-L72 -> 2394.247623 | U72: =S72/R72 -> 8357.419433 | AA72: =IF(R72<0,IF(U72<Rc_,0,1),IF(U72<Rc_,1,0)) -> 1 | AF72: =R72*Rc_-S72 -> 11929.83676 | AL72: =IF(AF72>0,1,0) -> 1
A73: =INT(RAND()*100)+1 -> 14 | B73: 6.318352662 | C73: 7685.287676 | E73: =INT(RAND()*100)+101 -> 138 | F73: 13.83186844 | G73: 13091.20578 | I73: 66 | K73: 6.119338409 | L73: 6066.757161 | O73: 6.883627766 | P73: 9233.687255 | R73: 0.7642893572 | S73: 3166.930094 | U73: 4143.627102 | AA73: 1 | AF73: 35047.53776 | AL73: 1
A74: 31 | B74: 3.028690031 | C74: 6941.834828 | E74: 107 | F74: 1.078318325 | G74: 6136.046252 | I74: 67 | K74: 6.61088825 | L74: 6427.627584 | O74: 7.000012067 | P74: 9582.348173 | R74: 0.3891238178 | S74: 3154.720588 | U74: 8107.241048 | AA74: 1 | AF74: 16301.4703 | AL74: 1
A75: 25 | B75: 1.903665087 | C75: 16030.08997 | E75: 149 | F75: 12.14376171 | G75: 11829.1268 | I75: 68 | K75: 6.867887918 | L75: 7622.913964 | O75: 7.292951996 | P75: 9592.923518 | R75: 0.425064078 | S75: 1970.009553 | U75: 4634.617826 | AA75: 1 | AF75: 19283.19435 | AL75: 1
A76: 31 | B76: 3.028690031 | C76: 6941.834828 | E76: 149 | F76: 12.14376171 | G76: 11829.1268 | I76: 69 | K76: 6.117679598 | L76: 8314.23248 | O76: 6.799133131 | P76: 9122.841441 | R76: 0.6814535333 | S76: 808.6089605 | U76: 1186.594421 | AA76: 1 | AF76: 33264.0677 | AL76: 1
A77: 72 | B77: 12.26872335 | C77: 6182.673247 | E77: 164 | F77: 13.47353277 | G77: 13098.03394 | I77: 70 | K77: 6.55928351 | L77: 7037.883464 | O77: 7.261527245 | P77: 10058.27932 | R77: 0.7022437351 | S77: 3020.395854 | U77: 4301.064863 | AA77: 1 | AF77: 32091.7909 | AL77: 1
A78: 6 | B78: 6.924525696 | C78: 13344.61904 | E78: 125 | F78: 4.762060757 | G78: 6267.357199 | I78: 71 | K78: 6.4943108 | L78: 7143.306889 | O78: 7.666407481 | P78: 10055.77579 | R78: 1.172096681 | S78: 2912.468904 | U78: 2484.836746 | AA78: 1 | AF78: 55692.36515 | AL78: 1
A79: 88 | B79: 0.6293149218 | C79: 3964.295979 | E79: 109 | F79: 9.647287374 | G79: 13825.65314 | I79: 72 | K79: 6.360774049 | L79: 6196.395122 | O79: 7.188731459 | P79: 10111.73456 | R79: 0.8279574101 | S79: 3915.339441 | U79: 4728.914063 | AA79: 1 | AF79: 37482.53107 | AL79: 1
A80: 55 | B80: 6.059432678 | C80: 8149.110759 | E80: 178 | F80: 5.618277486 | G80: 7311.857415 | I80: 73 | K80: 6.135575661 | L80: 8160.302213 | O80: 6.829072857 | P80: 9901.760951 | R80: 0.6934971952 | S80: 1741.458739 | U80: 2511.125857 | AA80: 1 | AF80: 32933.40102 | AL80: 1
A81: 21 | B81: 0.2873014006 | C81: 5738.298393 | E81: 120 | F81: 10.77669024 | G81: 20972.19296 | I81: 74 | K81: 6.141824306 | L81: 7079.44944 | O81: 7.718887314 | P81: 10618.53336 | R81: 1.577063009 | S81: 3539.08392 | U81: 2244.097985 | AA81: 1 | AF81: 75314.06651 | AL81: 1
A82: 42 | B82: 12.23651816 | C82: 7825.657382 | E82: 152 | F82: 6.629131142 | G82: 7874.346336 | I82: 75 | K82: 6.501940256 | L82: 9672.390891 | O82: 6.967813773 | P82: 9266.890575 | R82: 0.4658735169 | S82: -405.5003163 | U82: -870.4086014 | AA82: 1 | AF82: 23699.17616 | AL82: 1
A83: 22 | B83: 2.939577423 | C83: 1482.47376 | E83: 168 | F83: 0.3619489379 | G83: 4850.151248 | I83: 76 | K83: 6.682137896 | L83: 8582.118991 | O83: 7.478501444 | P83: 10491.46253 | R83: 0.7963635479 | S83: 1909.343542 | U83: 2397.577773 | AA83: 1 | AF83: 37908.83386 | AL83: 1
A84: 94 | B84: 6.036370087 | C84: 7500.021089 | E84: 194 | F84: 5.687662453 | G84: 6866.515359 | I84: 77 | K84: 6.29441703 | L84: 7483.754239 | O84: 7.435683001 | P84: 10502.86437 | R84: 1.141265971 | S84: 3019.110132 | U84: 2645.404498 | AA84: 1 | AF84: 54044.1884 | AL84: 1
A85: 83 | B85: 10.07039819 | C85: 7454.442667 | E85: 107 | F85: 1.078318325 | G85: 6136.046252 | I85: 78 | K85: 6.851167272 | L85: 6138.629477 | O85: 7.13528251 | P85: 9810.288757 | R85: 0.2841152377 | S85: 3671.659281 | U85: 12923.13398 | AA85: 1 | AF85: 10534.1026 | AL85: 1
A86: 20 | B86: 9.591560253 | C86: 5646.980802 | E86: 167 | F86: 3.987701032 | G86: 6747.182429 | I86: 79 | K86: 6.081569822 | L86: 5802.525221 | O86: 6.92318411 | P86: 9199.355825 | R86: 0.8416142879 | S86: 3396.830604 | U86: 4036.089515 | AA86: 1 | AF86: 38683.88379 | AL86: 1
A87: 100 | B87: 4.58315883 | C87: 3620.341153 | E87: 146 | F87: 6.06603058 | G87: 5980.894831 | I87: 80 | K87: 6.957786701 | L87: 7632.473526 | O87: 7.427402158 | P87: 10255.44847 | R87: 0.4696154567 | S87: 2622.974946 | U87: 5585.367577 | AA87: 1 | AF87: 20857.79789 | AL87: 1
A88: 65 | B88: 7.000438106 | C88: 4841.281591 | E88: 173 | F88: 5.425536427 | G88: 9668.622882 | I88: 81 | K88: 5.893902865 | L88: 8517.794824 | O88: 7.177333924 | P88: 9816.675519 | R88: 1.283431059 | S88: 1298.880695 | U88: 1012.037761 | AA88: 1 | AF88: 62872.67227 | AL88: 1
A89: 16 | B89: =VLOOKUP(A89,control,2,1) -> 4.199795298 | C89: =VLOOKUP(A89,control,3,1) -> 4520.682798 | E89: 180 | F89: =VLOOKUP(E89,treatment,2,1) -> 3.900844094 | G89: =VLOOKUP(E89,treatment,3,1) -> 5155.009534 | I89: 82 | K89: 6.199849669 | L89: 7881.163943 | O89: 7.085309191 | P89: 9629.38757 | R89: 0.8854595221 | S89: 1748.223627 | U89: 1974.368769 | AA89: 1 | AF89: 42524.75248 | AL89: 1
A90: 34 | B90: 6.427145514 | C90: 6911.366712 | E90: 173 | F90: 5.425536427 | G90: 9668.622882 | I90: 83 | K90: 6.122577341 | L90: 6272.614969 | O90: 7.253621634 | P90: 9364.463191 | R90: 1.131044293 | S90: 3091.848222 | U90: 2733.622584 | AA90: 1 | AF90: 53460.36641 | AL90: 1
A91: 3 | B91: 11.05141463 | C91: 5786.254801 | E91: 190 | F91: 7.282468056 | G91: 7263.244576 | I91: 84 | K91: 6.328196828 | L91: 5671.137848 | O91: 7.358134217 | P91: 9921.334339 | R91: 1.029937389 | S91: 4250.19649 | U91: 4126.65521 | AA91: 1 | AF91: 47246.67294 | AL91: 1
A92: 66 | B92: 4.589090937 | C92: 3985.58593 | E92: 182 | F92: 6.879787207 | G92: 6729.917029 | I92: 85 | K92: 6.149861604 | L92: 6889.856865 | O92: 7.338111506 | P92: 9704.841517 | R92: 1.188249902 | S92: 2814.984652 | U92: 2369.017366 | AA92: 1 | AF92: 56597.51044 | AL92: 1
A93: 84 | B93: 14.14924984 | C93: 7425.346899 | E93: 161 | F93: 3.945815142 | G93: 5347.517718 | I93: 86 | K93: 6.744070838 | L93: 7300.101604 | O93: 7.196781636 | P93: 10435.10918 | R93: 0.4527107973 | S93: 3135.007577 | U93: 6924.967541 | AA93: 1 | AF93: 19500.53229 | AL93: 1
A94: 34 | B94: 6.427145514 | C94: 6911.366712 | E94: 105 | F94: 4.949594592 | G94: 5949.474758 | I94: 87 | K94: 6.654682877 | L94: 5590.400751 | O94: 7.661678138 | P94: 10500.62655 | R94: 1.006995261 | S94: 4910.225795 | U94: 4876.116091 | AA94: 1 | AF94: 45439.53725 | AL94: 1
A95: 96 | B95: 2.883178831 | C95: 5197.405447 | E95: 199 | F95: 8.530981715 | G95: 14064.62143 | I95: 88 | K95: 6.555756993 | L95: 5731.539204 | O95: 7.733909911 | P95: 9852.404176 | R95: 1.178152917 | S95: 4120.864972 | U95: 3497.733538 | AA95: 1 | AF95: 54786.7809 | AL95: 1
A96: 95 | B96: 0.4120837718 | C96: 936.6991731 | E96: 109 | F96: 9.647287374 | G96: 13825.65314 | I96: 89 | K96: 6.600588195 | L96: 6661.479352 | O96: 6.724577493 | P96: 9488.812635 | R96: 0.1239892973 | S96: 2827.333283 | U96: 22803.04303 | AA96: 1 | AF96: 3372.131584 | AL96: 1
A97: 21 | B97: 0.2873014006 | C97: 5738.298393 | E97: 150 | F97: 6.004974041 | G97: 9379.380611 | I97: 90 | K97: 6.523110388 | L97: 7158.68886 | O97: 6.947462342 | P97: 9633.148197 | R97: 0.4243519543 | S97: 2474.459337 | U97: 5831.148677 | AA97: 1 | AF97: 18743.13838 | AL97: 1
A98: 62 | B98: 8.200095034 | C98: 4486.202603 | E98: 162 | F98: 8.699251517 | G98: 8758.435498 | I98: 91 | K98: 7.070421274 | L98: 8577.870064 | O98: 7.172572123 | P98: 10622.56697 | R98: 0.1021508487 | S98: 2044.696906 | U98: 20016.4456 | AA98: 1 | AF98: 3062.845529 | AL98: 1
A99: 97 | B99: 11.62566294 | C99: 6231.841874 | E99: 164 | F99: 13.47353277 | G99: 13098.03394 | I99: 92 | K99: 6.453081515 | L99: 7323.547931 | O99: 7.08622497 | P99: 9749.087204 | R99: 0.6331434559 | S99: 2425.539273 | U99: 3830.947395 | AA99: 1 | AF99: 29231.63352 | AL99: 1
A100: 91 | B100: 8.116580927 | C100: 115200.0266 | E100: 190 | F100: 7.282468056 | G100: 7263.244576 | I100: 93 | K100: 6.246718653 | L100: 8018.378717 | O100: 7.186405232 | P100: 9549.355166 | R100: 0.9396865785 | S100: 1530.976449 | U100: 1629.241583 | AA100: 1 | AF100: 45453.35247 | AL100: 1
A101: 93 | B101: =VLOOKUP(A101,control,2,1) -> 10.67730585 | C101: =VLOOKUP(A101,control,3,1) -> 6598.507617 | E101: 164 | F101: =VLOOKUP(E101,treatment,2,1) -> 13.47353277 | G101: =VLOOKUP(E101,treatment,3,1) -> 13098.03394 | I101: 94 | K101: 6.515134919 | L101: 7934.642116 | O101: 7.606936987 | P101: 9778.874953 | R101: 1.091802069 | S101: 1844.232836 | U101: 1689.16408 | AA101: 1 | AF101: 52745.8706 | AL101: 1
A102: 7 | B102: 6.929599869 | C102: 5326.927359 | E102: 175 | F102: 5.186292549 | G102: 7339.102738 | I102: 95 | K102: 6.392670666 | L102: 5777.240129 | O102: 7.31374217 | P102: 9860.248266 | R102: 0.9210715039 | S102: 4083.008137 | U102: 4432.889433 | AA102: 1 | AF102: 41970.56706 | AL102: 1
A103: 25 | B103: 1.903665087 | C103: 16030.08997 | E103: 146 | F103: 6.06603058 | G103: 5980.894831 | I103: 96 | K103: 6.803092834 | L103: 5623.836487 | O103: 7.239444766 | P103: 10364.20257 | R103: 0.4363519325 | S103: 4740.366079 | U103: 10863.63031 | AA103: 1 | AF103: 17077.23055 | AL103: 1
A104: 41 | B104: 7.94118811 | C104: 14326.88676 | E104: 177 | F104: 2.139681735 | G104: 11003.81522 | I104: 97 | K104: 6.437498082 | L104: 5652.337329 | O104: 7.229739075 | P104: 9600.584123 | R104: 0.7922409934 | S104: 3948.246794 | U104: 4983.643647 | AA104: 1 | AF104: 35663.80288 | AL104: 1
A105: 49 | B105: 0.6142652574 | C105: 347.9300822 | E105: 189 | F105: 6.578386372 | G105: 7607.384282 | I105: 98 | K105: 6.64962938 | L105: 8833.676926 | O105: 6.641859795 | P105: 9488.496143 | R105: -0.007769585492 | S105: 654.8192167 | U105: -84279.81356 | AA105: 0 | AF105: -1043.298491 | AL105: 0
A106: 81 | B106: 10.67296085 | C106: 9763.996731 | E106: 110 | F106: 7.639100326 | G106: 7567.642343 | I106: 99 | K106: 6.713056669 | L106: 9154.286714 | O106: 6.612720649 | P106: 9739.484945 | R106: -0.1003360204 | S106: 585.1982312 | U106: -5832.384311 | AA106: 0 | AF106: -5601.999251 | AL106: 0
A107: 44 | B107: 1.668510826 | C107: 602.2512958 | E107: 108 | F107: 6.354948062 | G107: 6291.670917 | I107: 100 | K107: 6.213671326 | L107: 7816.630931 | O107: 6.952844554 | P107: 10109.71102 | R107: 0.739173228 | S107: 2293.080087 | U107: 3102.222862 | AA107: 1 | AF107: 34665.58131 | AL107: 1
I108: 101 | K108: 6.693568065 | L108: 8686.261831 | O108: 7.229036133 | P108: 10472.18918 | R108: 0.5354680687 | S108: 1785.927352 | U108: 3335.263961 | AA108: 1 | AF108: 24987.47608 | AL108: 1
A109: means: | B109: =AVERAGE(B8:B107) -> 6.035216797 | C109: =AVERAGE(C8:C107) -> 7584.729406 | F109: =AVERAGE(F8:F107) -> 7.30440316 | G109: =AVERAGE(G8:G107) -> 9920.059637 | I109: 102 | K109: 6.210594096 | L109: 6547.437178 | O109: 7.028336178 | P109: 10142.16758 | R109: 0.8177420824 | S109: 3594.730404 | U109: 4395.921992 | AA109: 1 | AF109: 37292.37372 | AL109: 1
I110: 103 | K110: 6.409705009 | L110: 7452.434185 | O110: 7.840034195 | P110: 10382.87983 | R110: 1.430329186 | S110: 2930.445648 | U110: 2048.791059 | AA110: 1 | AF110: 68586.01366 | AL110: 1
I111: 104 | K111: 6.574468088 | L111: 6697.954716 | O111: 7.084490828 | P111: 9111.613223 | R111: 0.5100227406 | S111: 2413.658508 | U111: 4732.452723 | AA111: 1 | AF111: 23087.47852 | AL111: 1
I112: 105 | K112: 7.050913019 | L112: 8975.859647 | O112: 7.325585694 | P112: 10033.90478 | R112: 0.2746726748 | S112: 1058.045137 | U112: 3852.021821 | AA112: 1 | AF112: 12675.5886 | AL112: 1
I113: 106 | K113: 6.291190568 | L113: 6650.368332 | O113: 6.656854412 | P113: 9324.122145 | R113: 0.3656638446 | S113: 2673.753813 | U113: 7312.054097 | AA113: 1 | AF113: 15609.43842 | AL113: 1
I114: 107 | K114: 6.558613599 | L114: 8560.829105 | O114: 7.606444577 | P114: 10193.40166 | R114: 1.047830978 | S114: 1632.572558 | U114: 1558.049525 | AA114: 1 | AF114: 50758.97634 | AL114: 1
I115: 108 | K115: 6.646476206 | L115: 6226.382694 | O115: 7.442498137 | P115: 9926.325724 | R115: 0.7960219313 | S115: 3699.94303 | U115: 4648.041574 | AA115: 1 | AF115: 36101.15353 | AL115: 1
I116: 109 | K116: 6.552396447 | L116: 7216.154835 | O116: 7.367905692 | P116: 10093.69993 | R116: 0.8155092445 | S116: 2877.545098 | U116: 3528.525418 | AA116: 1 | AF116: 37897.91713 | AL116: 1
I117: 110 | K117: 6.394396223 | L117: 6791.138817 | O117: 7.447366516 | P117: 10448.07634 | R117: 1.052970293 | S117: 3656.937525 | U117: 3472.97312 | AA117: 1 | AF117: 48991.57714 | AL117: 1
I118: 111 | K118: 6.263559921 | L118: 6960.521753 | O118: 7.469568306 | P118: 10143.36877 | R118: 1.206008385 | S118: 3182.84702 | U118: 2639.158285 | AA118: 1 | AF118: 57117.57222 | AL118: 1
I119: 112 | K119: 6.632031179 | L119: 8088.954182 | O119: 6.85437679 | P119: 9671.061123 | R119: 0.2223456108 | S119: 1582.106941 | U119: 7115.530345 | AA119: 1 | AF119: 9535.173599 | AL119: 1
I120: 113 | K120: 6.55816445 | L120: 6857.244068 | O120: 6.448931078 | P120: 8721.70269 | R120: -0.1092333719 | S120: 1864.458622 | U120: -17068.58069 | AA120: 0 | AF120: -7326.127216 | AL120: 0
I121: 114 | K121: 6.919050162 | L121: 7221.939393 | O121: 6.777302136 | P121: 9717.936285 | R121: -0.1417480264 | S121: 2495.996892 | U121: -17608.68885 | AA121: 0 | AF121: -9583.398212 | AL121: 0
I122: 115 | K122: 6.525718586 | L122: 6019.346227 | O122: 7.216451571 | P122: 9488.240872 | R122: 0.6907329848 | S122: 3468.894645 | U122: 5022.048637 | AA122: 1 | AF122: 31067.7546 | AL122: 1
I123: 116 | K123: 6.20416711 | L123: 7107.258775 | O123: 6.658325049 | P123: 9369.466492 | R123: 0.4541579384 | S123: 2262.207718 | U123: 4981.103546 | AA123: 1 | AF123: 20445.6892 | AL123: 1
I124: 117 | K124: 6.343645291 | L124: 6718.008023 | O124: 6.702262004 | P124: 9411.053618 | R124: 0.3586167133 | S124: 2693.045595 | U124: 7509.537328 | AA124: 1 | AF124: 15237.79007 | AL124: 1
I125: 118 | K125: 6.654401996 | L125: 6492.75308 | O125: 6.744207482 | P125: 8578.454727 | R125: 0.08980548618 | S125: 2085.701647 | U125: 23224.65737 | AA125: 1 | AF125: 2404.572662 | AL125: 1
I126: 119 | K126: 6.594222782 | L126: 8362.34581 | O126: 7.456074816 | P126: 10339.53336 | R126: 0.8618520341 | S126: 1977.187546 | U126: 2294.114846 | AA126: 1 | AF126: 41115.41416 | AL126: 1
I127: 120 | K127: 6.079086558 | L127: 5670.932062 | O127: 7.321145942 | P127: 9630.665634 | R127: 1.242059384 | S127: 3959.733572 | U127: 3188.03885 | AA127: 1 | AF127: 58143.23565 | AL127: 1
I128: 121 | K128: 6.909638865 | L128: 7576.901584 | O128: 7.612043513 | P128: 9978.779935 | R128: 0.7024046482 | S128: 2401.878351 | U128: 3419.508054 | AA128: 1 | AF128: 32718.35406 | AL128: 1
I129: 122 | K129: 6.867550163 | L129: 8409.647206 | O129: 7.482829954 | P129: 10203.49385 | R129: 0.6152797917 | S129: 1793.846642 | U129: 2915.497415 | AA129: 1 | AF129: 28970.14294 | AL129: 1
I130: 123 | K130: 6.356971545 | L130: 7247.500896 | O130: 6.841533453 | P130: 9807.124992 | R130: 0.4845619077 | S130: 2559.624095 | U130: 5282.346909 | AA130: 1 | AF130: 21668.47129 | AL130: 1
I131: 124 | K131: 6.155348724 | L131: 6866.255327 | O131: 7.237296311 | P131: 9722.781001 | R131: 1.081947587 | S131: 2856.525674 | U131: 2640.170104 | AA131: 1 | AF131: 51240.85369 | AL131: 1
I132: 125 | K132: 6.441875199 | L132: 7016.669531 | O132: 7.062495339 | P132: 9988.736156 | R132: 0.6206201407 | S132: 2972.066624 | U132: 4788.865893 | AA132: 1 | AF132: 28058.94041 | AL132: 1
I133: 126 | K133: 6.983283245 | L133: 7983.639869 | O133: 7.35809565 | P133: 9691.719763 | R133: 0.3748124048 | S133: 1708.079894 | U133: 4557.159456 | AA133: 1 | AF133: 17032.54034 | AL133: 1
I134: 127 | K134: 6.770347219 | L134: 7217.835094 | O134: 7.181938308 | P134: 9857.499245 | R134: 0.4115910887 | S134: 2639.664151 | U134: 6413.31706 | AA134: 1 | AF134: 17939.89029 | AL134: 1
I135: 128 | K135: 6.807181082 | L135: 5373.458222 | O135: 6.542403873 | P135: 9271.277889 | R135: -0.2647772097 | S135: 3897.819667 | U135: -14721.12978 | AA135: 0 | AF135: -17136.68015 | AL135: 0
I136: 129 | K136: 6.498046659 | L136: 6072.140372 | O136: 7.36817415 | P136: 10152.76183 | R136: =O136-K136 -> 0.8701274912 | S136: =P136-L136 -> 4080.621454 | U136: =S136/R136 -> 4689.682254 | AA136: =IF(R136<0,IF(U136<Rc_,0,1),IF(U136<Rc_,1,0)) -> 1 | AF136: =R136*Rc_-S136 -> 39425.75311 | AL136: =IF(AF136>0,1,0) -> 1
I137: 130 | K137: 6.774775396 | L137: 7131.731923 | O137: 7.587121473 | P137: 10439.66099 | R137: 0.812346077 | S137: 3307.929071 | U137: 4072.068746 | AA137: 1 | AF137: 37309.37478 | AL137: 1
I138: 131 | K138: 6.754433322 | L138: 7204.334947 | O138: 7.327532527 | P138: 10020.09141 | R138: 0.5730992046 | S138: 2815.756466 | U138: 4913.209516 | AA138: 1 | AF138: 25839.20377 | AL138: 1
I139: 132 | K139: 6.620990322 | L139: 5942.323313 | O139: 7.228659323 | P139: 9779.898771 | R139: 0.6076690001 | S139: 3837.575458 | U139: 6315.239804 | AA139: 1 | AF139: 26545.87455 | AL139: 1
I140: 133 | K140: 6.138485938 | L140: 6901.181575 | O140: 7.292693165 | P140: 10444.00179 | R140: 1.154207227 | S140: 3542.820217 | U140: 3069.483654 | AA140: 1 | AF140: 54167.54114 | AL140: 1
I141: 134 | K141: 6.429704584 | L141: 8474.238584 | O141: 7.618969514 | P141: 10387.79657 | R141: 1.189264929 | S141: 1913.55799 | U141: 1609.02583 | AA141: 1 | AF141: 57549.68848 | AL141: 1
I142: 135 | K142: 6.234469739 | L142: 6416.462082 | O142: 7.613234536 | P142: 10203.75439 | R142: 1.378764797 | S142: 3787.292306 | U142: 2746.87337 | AA142: 1 | AF142: 65150.94757 | AL142: 1
I143: 136 | K143: 6.858071593 | L143: 8994.71276 | O143: 7.09509825 | P143: 9311.7806 | R143: 0.2370266572 | S143: 317.0678403 | U143: 1337.688528 | AA143: 1 | AF143: 11534.26502 | AL143: 1
I144: 137 | K144: 6.448012703 | L144: 6637.171213 | O144: 7.22918278 | P144: 9579.557896 | R144: 0.7811700776 | S144: 2942.386682 | U144: 3766.640283 | AA144: 1 | AF144: 36116.1172 | AL144: 1
I145: 138 | K145: 7.242505973 | L145: 6403.053809 | O145: 7.244335378 | P145: 9929.080572 | R145: 0.001829404643 | S145: 3526.026763 | U145: 1927417.631 | AA145: 0 | AF145: -3434.556531 | AL145: 0
I146: 139 | K146: 6.359744794 | L146: 7261.568167 | O146: 7.009140584 | P146: 9447.624429 | R146: 0.6493957897 | S146: 2186.056262 | U146: 3366.292633 | AA146: 1 | AF146: 30283.73322 | AL146: 1
I147: 140 | K147: 5.865557403 | L147: 8127.182816 | O147: 7.00032497 | P147: 9417.087845 | R147: 1.134767567 | S147: 1289.905029 | U147: 1136.712986 | AA147: 1 | AF147: 55448.4733 | AL147: 1
I148: 141 | K148: 7.119904034 | L148: 7637.25037 | O148: 6.800959433 | P148: 9646.027705 | R148: -0.318944602 | S148: 2008.777335 | U148: -6298.20139 | AA148: 0 | AF148: -17956.00743 | AL148: 0
I149: 142 | K149: 6.373527495 | L149: 7034.468738 | O149: 7.046137535 | P149: 10064.68181 | R149: 0.6726100403 | S149: 3030.213069 | U149: 4505.155867 | AA149: 1 | AF149: 30600.28895 | AL149: 1
I150: 143 | K150: 6.839148187 | L150: 7932.242708 | O150: 7.297792604 | P150: 9601.4245 | R150: 0.4586444172 | S150: 1669.181792 | U150: 3639.381031 | AA150: 1 | AF150: 21263.03907 | AL150: 1
I151: 144 | K151: 6.328924756 | L151: 7524.849811 | O151: 6.724182363 | P151: 8838.002986 | R151: 0.3952576067 | S151: 1313.153176 | U151: 3322.271737 | AA151: 1 | AF151: 18449.72716 | AL151: 1
I152: 145 | K152: 6.214802425 | L152: 7097.367374 | O152: 6.870093566 | P152: 9356.516234 | R152: 0.6552911416 | S152: 2259.148859 | U152: 3447.549823 | AA152: 1 | AF152: 30505.40822 | AL152: 1
I153: 146 | K153: 6.259821478 | L153: 7047.874047 | O153: 7.10983071 | P153: 9573.31484 | R153: 0.8500092316 | S153: 2525.440793 | U153: 2971.074547 | AA153: 1 | AF153: 39975.02079 | AL153: 1
I154: 147 | K154: 6.432536897 | L154: 7396.67576 | O154: 6.598456554 | P154: 9957.327359 | R154: 0.1659196578 | S154: 2560.651599 | U154: 15433.08148 | AA154: 1 | AF154: 5735.331293 | AL154: 1
I155: 148 | K155: 6.777441135 | L155: 6248.404518 | O155: 7.427821608 | P155: 10091.35399 | R155: 0.6503804723 | S155: 3842.949471 | U155: 5908.771303 | AA155: 1 | AF155: 28676.07415 | AL155: 1
I156: 149 | K156: 6.817470429 | L156: 8137.445632 | O156: 7.440468266 | P156: 10061.59005 | R156: 0.6229978362 | S156: 1924.144421 | U156: 3088.525046 | AA156: 1 | AF156: 29225.74739 | AL156: 1
I157: 150 | K157: 6.727023707 | L157: 8207.694452 | O157: 7.234793177 | P157: 10368.06784 | R157: 0.5077694698 | S157: 2160.373384 | U157: 4254.634262 | AA157: 1 | AF157: 23228.10011 | AL157: 1
I158: 151 | K158: 6.321693799 | L158: 8354.712614 | O158: 7.117564951 | P158: 9372.952169 | R158: 0.7958711516 | S158: 1018.239555 | U158: 1279.402518 | AA158: 1 | AF158: 38775.31802 | AL158: 1
I159: 152 | K159: 6.385831291 | L159: 9040.838462 | O159: 6.986723652 | P159: 9087.216181 | R159: 0.6008923616 | S159: 46.37771834 | U159: 77.18140768 | AA159: 1 | AF159: 29998.24036 | AL159: 1
I160: 153 | K160: 6.237593254 | L160: 6082.276511 | O160: 7.223082376 | P160: 9705.072695 | R160: 0.9854891218 | S160: 3622.796184 | U160: 3676.140207 | AA160: 1 | AF160: 45651.6599 | AL160: 1
I161: 154 | K161: 6.679613741 | L161: 5967.723225 | O161: 7.518334203 | P161: 9993.62243 | R161: 0.8387204619 | S161: 4025.899204 | U161: 4800.048869 | AA161: 1 | AF161: 37910.12389 | AL161: 1
I162: 155 | K162: 6.373707984 | L162: 6022.777778 | O162: 7.304308749 | P162: 9757.890916 | R162: 0.9306007653 | S162: 3735.113138 | U162: 4013.657927 | AA162: 1 | AF162: 42794.92512 | AL162: 1
I163: 156 | K163: 6.127823011 | L163: 6093.508073 | O163: 7.307363628 | P163: 9708.701925 | R163: 1.179540617 | S163: 3615.193851 | U163: 3064.916798 | AA163: 1 | AF163: 55361.83699 | AL163: 1
I164: 157 | K164: 6.008265724 | L164: 6928.794922 | O164: 7.233761804 | P164: 9216.495215 | R164: 1.22549608 | S164: 2287.700293 | U164: 1866.754477 | AA164: 1 | AF164: 58987.1037 | AL164: 1
I165: 158 | K165: 6.360372875 | L165: 7211.525484 | O165: 7.391090159 | P165: 9252.925017 | R165: 1.030717284 | S165: 2041.399532 | U165: 1980.562045 | AA165: 1 | AF165: 49494.46467 | AL165: 1
I166: 159 | K166: 6.758913437 | L166: 6842.54583 | O166: 7.060680726 | P166: 10337.68215 | R166: 0.3017672886 | S166: 3495.136318 | U166: 11582.22395 | AA166: 1 | AF166: 11593.22811 | AL166: 1
I167: 160 | K167: 5.927442901 | L167: 5707.066163 | O167: 7.088904367 | P167: 10510.42535 | R167: 1.161461466 | S167: 4803.359182 | U167: 4135.616483 | AA167: 1 | AF167: 53269.71411 | AL167: 1
I168: 161 | K168: 6.387483826 | L168: 8367.185169 | O168: 7.708256936 | P168: 10218.94247 | R168: 1.32077311 | S168: 1851.757301 | U168: 1402.025289 | AA168: 1 | AF168: 64186.8982 | AL168: 1
I169: 162 | K169: 6.475036865 | L169: 6613.823831 | O169: 6.712800156 | P169: 9793.44054 | R169: 0.237763291 | S169: 3179.616709 | U169: 13373.03457 | AA169: 1 | AF169: 8708.547842 | AL169: 1
I170: 163 | K170: 6.361254138 | L170: 6969.637112 | O170: 6.616733636 | P170: 9435.47738 | R170: 0.2554794981 | S170: 2465.840268 | U170: 9651.812717 | AA170: 1 | AF170: 10308.13463 | AL170: 1
I171: 164 | K171: 6.230671644 | L171: 5256.263362 | O171: 7.040317931 | P171: 10281.75456 | R171: 0.8096462864 | S171: 5025.491203 | U171: 6207.02063 | AA171: 1 | AF171: 35456.82312 | AL171: 1
I172: 165 | K172: 6.200254101 | L172: 8213.910985 | O172: 7.441431088 | P172: 9484.951623 | R172: 1.241176988 | S172: 1271.040638 | U172: 1024.060751 | AA172: 1 | AF172: 60787.80874 | AL172: 1
I173: 166 | K173: 6.750020851 | L173: 10221.16225 | O173: 7.842792569 | P173: 11042.80401 | R173: 1.092771718 | S173: 821.6417679 | U173: 751.887841 | AA173: 1 | AF173: 53816.94414 | AL173: 1
I174: 167 | K174: 5.999062798 | L174: 6419.989527 | O174: 6.69149184 | P174: 9463.988359 | R174: 0.6924290422 | S174: 3043.998833 | U174: 4396.116637 | AA174: 1 | AF174: 31577.45328 | AL174: 1
I175: 168 | K175: 6.581916531 | L175: 7789.57721 | O175: 6.961494085 | P175: 9555.605272 | R175: 0.3795775549 | S175: 1766.028062 | U175: 4652.614569 | AA175: 1 | AF175: 17212.84968 | AL175: 1
I176: 169 | K176: 6.580302697 | L176: 5951.479966 | O176: 6.58864364 | P176: 9122.028713 | R176: 0.008340942628 | S176: 3170.548747 | U176: 380118.7574 | AA176: 0 | AF176: -2753.501616 | AL176: 0
I177: 170 | K177: 6.201949626 | L177: 6831.555452 | O177: 6.677079591 | P177: 9742.163553 | R177: 0.4751299652 | S177: 2910.608101 | U177: 6125.919884 | AA177: 1 | AF177: 20845.89016 | AL177: 1
I178: 171 | K178: 5.897471813 | L178: 6624.131177 | O178: 7.0313633 | P178: 9548.97435 | R178: 1.133891487 | S178: 2924.843173 | U178: 2579.473615 | AA178: 1 | AF178: 53769.73117 | AL178: 1
I179: 172 | K179: 6.137374487 | L179: 6733.372996 | O179: 7.479211141 | P179: 10160.92403 | R179: 1.341836655 | S179: 3427.55103 | U179: 2554.372783 | AA179: 1 | AF179: 63664.2817 | AL179: 1
I180: 173 | K180: 6.813183236 | L180: 6100.657964 | O180: 7.353126045 | P180: 10110.58706 | R180: 0.5399428094 | S180: 4009.9291 | U180: 7426.581168 | AA180: 1 | AF180: 22987.21137 | AL180: 1
I181: 174 | K181: 6.477750048 | L181: 6914.456904 | O181: 6.776038385 | P181: 8978.390045 | R181: 0.2982883368 | S181: 2063.93314 | U181: 6919.255249 | AA181: 1 | AF181: 12850.4837 | AL181: 1
I182: 175 | K182: 6.577448624 | L182: 6089.895044 | O182: 7.123340588 | P182: 9583.902647 | R182: 0.5458919647 | S182: 3494.007603 | U182: 6400.547779 | AA182: 1 | AF182: 23800.59063 | AL182: 1
I183: 176 | K183: 6.052263622 | L183: 7259.728966 | O183: 7.424665066 | P183: 10072.84357 | R183: 1.372401444 | S183: 2813.114602 | U183: 2049.775315 | AA183: 1 | AF183: 65806.95759 | AL183: 1
I184: 177 | K184: 6.753531029 | L184: 7065.340142 | O184: 7.426452404 | P184: 9871.600853 | R184: 0.672921375 | S184: 2806.26071 | U184: 4170.265375 | AA184: 1 | AF184: 30839.80804 | AL184: 1
I185: 178 | K185: 6.67313507 | L185: 7093.226872 | O185: 7.735809652 | P185: 10025.63499 | R185: 1.062674582 | S185: 2932.408114 | U185: 2759.460105 | AA185: 1 | AF185: 50201.32099 | AL185: 1
I186: 179 | K186: 6.512141393 | L186: 7097.802931 | O186: 6.494878767 | P186: 9385.945664 | R186: -0.01726262554 | S186: 2288.142732 | U186: -132548.9409 | AA186: 0 | AF186: -3151.274009 | AL186: 0
I187: 180 | K187: 6.222898025 | L187: 8248.679404 | O187: 7.216643172 | P187: 9630.311984 | R187: 0.9937451469 | S187: 1381.63258 | U187: 1390.328883 | AA187: 1 | AF187: 48305.62476 | AL187: 1
I188: 181 | K188: 6.039251031 | L188: 6868.519782 | O188: 7.044481683 | P188: 9507.368723 | R188: 1.005230652 | S188: 2638.848941 | U188: 2625.117862 | AA188: 1 | AF188: 47622.68367 | AL188: 1
I189: 182 | K189: 6.575798759 | L189: 6326.318658 | O189: 7.26848169 | P189: 10120.07382 | R189: 0.6926829307 | S189: 3793.755158 | U189: 5476.900021 | AA189: 1 | AF189: 30840.39138 | AL189: 1
I190: 183 | K190: 6.541537527 | L190: 6162.750196 | O190: 7.236733561 | P190: 9923.945978 | R190: 0.6951960343 | S190: 3761.195782 | U190: 5410.266453 | AA190: 1 | AF190: 30998.60593 | AL190: 1
I191: 184 | K191: 6.820599063 | L191: 6680.35499 | O191: 7.344103339 | P191: 9405.655159 | R191: 0.523504276 | S191: 2725.30017 | U191: 5205.879482 | AA191: 1 | AF191: 23449.91363 | AL191: 1
I192: 185 | K192: 5.412635167 | L192: 8287.961533 | O192: 7.423386213 | P192: 10039.9444 | R192: 2.010751045 | S192: 1751.982864 | U192: 871.3076978 | AA192: 1 | AF192: 98785.56939 | AL192: 1
I193: 186 | K193: 6.017005084 | L193: 6475.481938 | O193: 7.263551078 | P193: 9462.43193 | R193: 1.246545994 | S193: 2986.949991 | U193: 2396.181133 | AA193: 1 | AF193: 59340.3497 | AL193: 1
I194: 187 | K194: 6.265421213 | L194: 7459.137871 | O194: 7.167020893 | P194: 9054.613363 | R194: 0.9015996806 | S194: 1595.475492 | U194: 1769.605209 | AA194: 1 | AF194: 43484.50854 | AL194: 1
I195: 188 | K195: 6.912502883 | L195: 6346.670773 | O195: 7.08612276 | P195: 9849.450953 | R195: 0.1736198773 | S195: 3502.78018 | U195: 20174.99514 | AA195: 1 | AF195: 5178.213683 | AL195: 1
I196: 189 | K196: 6.487551126 | L196: 5933.550942 | O196: 8.319635276 | P196: 11773.43198 | R196: 1.832084151 | S196: 5839.881041 | U196: 3187.561575 | AA196: 1 | AF196: 85764.32649 | AL196: 1
I197: 190 | K197: 6.529263355 | L197: 6087.737611 | O197: 7.113826589 | P197: 9154.537885 | R197: 0.5845632345 | S197: 3066.800275 | U197: 5246.310567 | AA197: 1 | AF197: 26161.36145 | AL197: 1
I198: 191 | K198: 6.333669262 | L198: 6153.497908 | O198: 7.246945239 | P198: 10007.39862 | R198: 0.9132759768 | S198: 3853.900713 | U198: 4219.864324 | AA198: 1 | AF198: 41809.89813 | AL198: 1
I199: 192 | K199: 5.845112933 | L199: 9317.705098 | O199: 7.423476869 | P199: 10172.05069 | R199: 1.578363936 | S199: 854.3455913 | U199: 541.2855502 | AA199: 1 | AF199: 78063.85119 | AL199: 1
I200: 193 | K200: 6.04942489 | L200: 7356.616171 | O200: 6.797912442 | P200: 9387.979021 | R200: =O200-K200 -> 0.7484875519 | S200: =P200-L200 -> 2031.36285 | U200: =S200/R200 -> 2713.956759 | AA200: =IF(R200<0,IF(U200<Rc_,0,1),IF(U200<Rc_,1,0)) -> 1 | AF200: =R200*Rc_-S200 -> 35393.01474 | AL200: =IF(AF200>0,1,0) -> 1
I201: 194 | K201: 6.967439186 | L201: 8327.002218 | O201: 7.35223303 | P201: 9584.44806 | R201: 0.3847938443 | S201: 1257.445842 | U201: 3267.842926 | AA201: 1 | AF201: 17982.24637 | AL201: 1
I202: 195 | K202: 6.684610505 | L202: 8421.775327 | O202: 7.744765914 | P202: 10032.34731 | R202: 1.060155409 | S202: 1610.57198 | U202: 1519.184797 | AA202: 1 | AF202: 51397.19846 | AL202: 1
... 805 more rows

Sheet Parametric
A1: Parametric uncertainty analysis
A5: Parametric CEA curve
A6: Rc | B6: NB | C6: seNB | D6: z | E6: pCE
A8: 0 | B8: =A8*'Summary Statistics'!$B$11-'Summary Statistics'!$C$11 -> -2683.609687 | C8: =SQRT((A8*'Summary Statistics'!$B$12)^2+'Summary Statistics'!$C$12^2-2*A8*'Summary Statistics'!$B$23*'Summary Statistics'!$B$12*'Summary Statistics'!$C$12) -> 1244.370666 | D8: =B8/C8 -> -2.156599927 | E8: =NORMDIST(D8,0,1,1) -> 0.0155184251
A9: 1000 | B9: =A9*'Summary Statistics'!$B$11-'Summary Statistics'!$C$11 -> -1901.446199 | C9: =SQRT((A9*'Summary Statistics'!$B$12)^2+'Summary Statistics'!$C$12^2-2*A9*'Summary Statistics'!$B$23*'Summary Statistics'!$B$12*'Summary Statistics'!$C$12) -> 1203.17047 | D9: -1.580363087 | E9: 0.05701186993
A10: 2000 | B10: =A10*'Summary Statistics'!$B$11-'Summary Statistics'!$C$11 -> -1119.282711 | C10: =SQRT((A10*'Summary Statistics'!$B$12)^2+'Summary Statistics'!$C$12^2-2*A10*'Summary Statistics'!$B$23*'Summary Statistics'!$B$12*'Summary Statistics'!$C$12) -> 1352.86642 | D10: -0.827341632 | E10: 0.2040217266
A11: 3000 | B11: =A11*'Summary Statistics'!$B$11-'Summary Statistics'!$C$11 -> -337.1192237 | C11: =SQRT((A11*'Summary Statistics'!$B$12)^2+'Summary Statistics'!$C$12^2-2*A11*'Summary Statistics'!$B$23*'Summary Statistics'!$B$12*'Summary Statistics'!$C$12) -> 1642.054645 | D11: -0.2053032916 | E11: 0.4186675862
A12: 4000 | B12: =A12*'Summary Statistics'!$B$11-'Summary Statistics'!$C$11 -> 445.044264 | C12: =SQRT((A12*'Summary Statistics'!$B$12)^2+'Summary Statistics'!$C$12^2-2*A12*'Summary Statistics'!$B$23*'Summary Statistics'!$B$12*'Summary Statistics'!$C$12) -> 2011.443986 | D12: 0.2212561062 | E12: 0.5875534874
A13: 5000 | B13: =A13*'Summary Statistics'!$B$11-'Summary Statistics'!$C$11 -> 1227.207752 | C13: =SQRT((A13*'Summary Statistics'!$B$12)^2+'Summary Statistics'!$C$12^2-2*A13*'Summary Statistics'!$B$23*'Summary Statistics'!$B$12*'Summary Statistics'!$C$12) -> 2424.652119 | D13: 0.5061376608 | E13: 0.693619993
A14: 6000 | B14: =A14*'Summary Statistics'!$B$11-'Summary Statistics'!$C$11 -> 2009.371239 | C14: =SQRT((A14*'Summary Statistics'!$B$12)^2+'Summary Statistics'!$C$12^2-2*A14*'Summary Statistics'!$B$23*'Summary Statistics'!$B$12*'Summary Statistics'!$C$12) -> 2862.767267 | D14: 0.7018982166 | E14: 0.7586286794
A15: 7000 | B15: =A15*'Summary Statistics'!$B$11-'Summary Statistics'!$C$11 -> 2791.534727 | C15: =SQRT((A15*'Summary Statistics'!$B$12)^2+'Summary Statistics'!$C$12^2-2*A15*'Summary Statistics'!$B$23*'Summary Statistics'!$B$12*'Summary Statistics'!$C$12) -> 3315.931618 | D15: 0.8418553361 | E15: 0.8000655333
A16: 8000 | B16: =A16*'Summary Statistics'!$B$11-'Summary Statistics'!$C$11 -> 3573.698215 | C16: =SQRT((A16*'Summary Statistics'!$B$12)^2+'Summary Statistics'!$C$12^2-2*A16*'Summary Statistics'!$B$23*'Summary Statistics'!$B$12*'Summary Statistics'!$C$12) -> 3778.734723 | D16: 0.9457393748 | E16: 0.827859233
A17: 9000 | B17: =A17*'Summary Statistics'!$B$11-'Summary Statistics'!$C$11 -> 4355.861703 | C17: =SQRT((A17*'Summary Statistics'!$B$12)^2+'Summary Statistics'!$C$12^2-2*A17*'Summary Statistics'!$B$23*'Summary Statistics'!$B$12*'Summary Statistics'!$C$12) -> 4248.027455 | D17: 1.025384546 | E17: 0.8474091114
A18: 10000 | B18: =A18*'Summary Statistics'!$B$11-'Summary Statistics'!$C$11 -> 5138.02519 | C18: =SQRT((A18*'Summary Statistics'!$B$12)^2+'Summary Statistics'!$C$12^2-2*A18*'Summary Statistics'!$B$23*'Summary Statistics'!$B$12*'Summary Statistics'!$C$12) -> 4721.875258 | D18: 1.088132344 | E18: 0.8617316564
A19: 11000 | B19: =A19*'Summary Statistics'!$B$11-'Summary Statistics'!$C$11 -> 5920.188678 | C19: =SQRT((A19*'Summary Statistics'!$B$12)^2+'Summary Statistics'!$C$12^2-2*A19*'Summary Statistics'!$B$23*'Summary Statistics'!$B$12*'Summary Statistics'!$C$12) -> 5199.032813 | D19: 1.13870962 | E19: 0.8725878555
A20: 12000 | B20: =A20*'Summary Statistics'!$B$11-'Summary Statistics'!$C$11 -> 6702.352166 | C20: =SQRT((A20*'Summary Statistics'!$B$12)^2+'Summary Statistics'!$C$12^2-2*A20*'Summary Statistics'!$B$23*'Summary Statistics'!$B$12*'Summary Statistics'!$C$12) -> 5678.665861 | D20: 1.180268804 | E20: 0.8810533393
A21: 13000 | B21: =A21*'Summary Statistics'!$B$11-'Summary Statistics'!$C$11 -> 7484.515654 | C21: =SQRT((A21*'Summary Statistics'!$B$12)^2+'Summary Statistics'!$C$12^2-2*A21*'Summary Statistics'!$B$23*'Summary Statistics'!$B$12*'Summary Statistics'!$C$12) -> 6160.196204 | D21: 1.214980076 | E21: 0.8878131548
A22: 14000 | B22: =A22*'Summary Statistics'!$B$11-'Summary Statistics'!$C$11 -> 8266.679141 | C22: =SQRT((A22*'Summary Statistics'!$B$12)^2+'Summary Statistics'!$C$12^2-2*A22*'Summary Statistics'!$B$23*'Summary Statistics'!$B$12*'Summary Statistics'!$C$12) -> 6643.211281 | D22: 1.244379983 | E22: 0.8933201268
A23: 15000 | B23: =A23*'Summary Statistics'!$B$11-'Summary Statistics'!$C$11 -> 9048.842629 | C23: =SQRT((A23*'Summary Statistics'!$B$12)^2+'Summary Statistics'!$C$12^2-2*A23*'Summary Statistics'!$B$23*'Summary Statistics'!$B$12*'Summary Statistics'!$C$12) -> 7127.409243 | D23: 1.269583704 | E23: 0.8978835215
A24: 16000 | B24: =A24*'Summary Statistics'!$B$11-'Summary Statistics'!$C$11 -> 9831.006117 | C24: =SQRT((A24*'Summary Statistics'!$B$12)^2+'Summary Statistics'!$C$12^2-2*A24*'Summary Statistics'!$B$23*'Summary Statistics'!$B$12*'Summary Statistics'!$C$12) -> 7612.564381 | D24: 1.291418453 | E24: 0.9017206923
A25: 17000 | B25: =A25*'Summary Statistics'!$B$11-'Summary Statistics'!$C$11 -> 10613.1696 | C25: =SQRT((A25*'Summary Statistics'!$B$12)^2+'Summary Statistics'!$C$12^2-2*A25*'Summary Statistics'!$B$23*'Summary Statistics'!$B$12*'Summary Statistics'!$C$12) -> 8098.504673 | D25: 1.310509783 | E25: 0.9049882816
A26: 18000 | B26: =A26*'Summary Statistics'!$B$11-'Summary Statistics'!$C$11 -> 11395.33309 | C26: =SQRT((A26*'Summary Statistics'!$B$12)^2+'Summary Statistics'!$C$12^2-2*A26*'Summary Statistics'!$B$23*'Summary Statistics'!$B$12*'Summary Statistics'!$C$12) -> 8585.096793 | D26: 1.327338918 | E26: 0.9078017024
A27: 19000 | B27: =A27*'Summary Statistics'!$B$11-'Summary Statistics'!$C$11 -> 12177.49658 | C27: =SQRT((A27*'Summary Statistics'!$B$12)^2+'Summary Statistics'!$C$12^2-2*A27*'Summary Statistics'!$B$23*'Summary Statistics'!$B$12*'Summary Statistics'!$C$12) -> 9072.23586 | D27: 1.342281745 | E27: 0.9102476699
A28: 20000 | B28: =A28*'Summary Statistics'!$B$11-'Summary Statistics'!$C$11 -> 12959.66007 | C28: =SQRT((A28*'Summary Statistics'!$B$12)^2+'Summary Statistics'!$C$12^2-2*A28*'Summary Statistics'!$B$23*'Summary Statistics'!$B$12*'Summary Statistics'!$C$12) -> 9559.838262 | D28: 1.355635913 | E28: 0.9123924803
A29: 21000 | B29: =A29*'Summary Statistics'!$B$11-'Summary Statistics'!$C$11 -> 13741.82356 | C29: =SQRT((A29*'Summary Statistics'!$B$12)^2+'Summary Statistics'!$C$12^2-2*A29*'Summary Statistics'!$B$23*'Summary Statistics'!$B$12*'Summary Statistics'!$C$12) -> 10047.83655 | D29: 1.367640038 | E29: 0.9142876113
A30: 22000 | B30: =A30*'Summary Statistics'!$B$11-'Summary Statistics'!$C$11 -> 14523.98704 | C30: =SQRT((A30*'Summary Statistics'!$B$12)^2+'Summary Statistics'!$C$12^2-2*A30*'Summary Statistics'!$B$23*'Summary Statistics'!$B$12*'Summary Statistics'!$C$12) -> 10536.1757 | D30: 1.378487551 | E30: 0.9159735956
A31: 23000 | B31: =A31*'Summary Statistics'!$B$11-'Summary Statistics'!$C$11 -> 15306.15053 | C31: =SQRT((A31*'Summary Statistics'!$B$12)^2+'Summary Statistics'!$C$12^2-2*A31*'Summary Statistics'!$B$23*'Summary Statistics'!$B$12*'Summary Statistics'!$C$12) -> 11024.81044 | D31: 1.388336844 | E31: 0.9174827511
A32: 24000 | B32: =A32*'Summary Statistics'!$B$11-'Summary Statistics'!$C$11 -> 16088.31402 | C32: =SQRT((A32*'Summary Statistics'!$B$12)^2+'Summary Statistics'!$C$12^2-2*A32*'Summary Statistics'!$B$23*'Summary Statistics'!$B$12*'Summary Statistics'!$C$12) -> 11513.70311 | D32: 1.397318817 | E32: 0.9188411402
A33: 25000 | B33: =A33*'Summary Statistics'!$B$11-'Summary Statistics'!$C$11 -> 16870.47751 | C33: =SQRT((A33*'Summary Statistics'!$B$12)^2+'Summary Statistics'!$C$12^2-2*A33*'Summary Statistics'!$B$23*'Summary Statistics'!$B$12*'Summary Statistics'!$C$12) -> 12002.82222 | D33: 1.405542563 | E33: 0.9200699991
A34: 26000 | B34: =A34*'Summary Statistics'!$B$11-'Summary Statistics'!$C$11 -> 17652.64099 | C34: =SQRT((A34*'Summary Statistics'!$B$12)^2+'Summary Statistics'!$C$12^2-2*A34*'Summary Statistics'!$B$23*'Summary Statistics'!$B$12*'Summary Statistics'!$C$12) -> 12492.14115 | D34: 1.413099706 | E34: 0.9211867952
A35: 27000 | B35: =A35*'Summary Statistics'!$B$11-'Summary Statistics'!$C$11 -> 18434.80448 | C35: =SQRT((A35*'Summary Statistics'!$B$12)^2+'Summary Statistics'!$C$12^2-2*A35*'Summary Statistics'!$B$23*'Summary Statistics'!$B$12*'Summary Statistics'!$C$12) -> 12981.63732 | D35: 1.420067749 | E35: 0.9222060208
A36: 28000 | B36: =A36*'Summary Statistics'!$B$11-'Summary Statistics'!$C$11 -> 19216.96797 | C36: =SQRT((A36*'Summary Statistics'!$B$12)^2+'Summary Statistics'!$C$12^2-2*A36*'Summary Statistics'!$B$23*'Summary Statistics'!$B$12*'Summary Statistics'!$C$12) -> 13471.29139 | D36: 1.426512678 | E36: 0.9231397951
A37: 29000 | B37: =A37*'Summary Statistics'!$B$11-'Summary Statistics'!$C$11 -> 19999.13146 | C37: =SQRT((A37*'Summary Statistics'!$B$12)^2+'Summary Statistics'!$C$12^2-2*A37*'Summary Statistics'!$B$23*'Summary Statistics'!$B$12*'Summary Statistics'!$C$12) -> 13961.08677 | D37: 1.432491022 | E37: 0.9239983272
A38: 30000 | B38: =A38*'Summary Statistics'!$B$11-'Summary Statistics'!$C$11 -> 20781.29494 | C38: =SQRT((A38*'Summary Statistics'!$B$12)^2+'Summary Statistics'!$C$12^2-2*A38*'Summary Statistics'!$B$23*'Summary Statistics'!$B$12*'Summary Statistics'!$C$12) -> 14451.00908 | D38: 1.438051477 | E38: 0.9247902756
A39: 31000 | B39: =A39*'Summary Statistics'!$B$11-'Summary Statistics'!$C$11 -> 21563.45843 | C39: =SQRT((A39*'Summary Statistics'!$B$12)^2+'Summary Statistics'!$C$12^2-2*A39*'Summary Statistics'!$B$23*'Summary Statistics'!$B$12*'Summary Statistics'!$C$12) -> 14941.04583 | D39: 1.443236216 | E39: 0.9255230296
A40: 32000 | B40: =A40*'Summary Statistics'!$B$11-'Summary Statistics'!$C$11 -> 22345.62192 | C40: =SQRT((A40*'Summary Statistics'!$B$12)^2+'Summary Statistics'!$C$12^2-2*A40*'Summary Statistics'!$B$23*'Summary Statistics'!$B$12*'Summary Statistics'!$C$12) -> 15431.18612 | D40: =B40/C40 -> 1.44808194 | E40: =NORMDIST(D40,0,1,1) -> 0.9262029321
A41: 33000 | B41: =A41*'Summary Statistics'!$B$11-'Summary Statistics'!$C$11 -> 23127.78541 | C41: =SQRT((A41*'Summary Statistics'!$B$12)^2+'Summary Statistics'!$C$12^2-2*A41*'Summary Statistics'!$B$23*'Summary Statistics'!$B$12*'Summary Statistics'!$C$12) -> 15921.42038 | D41: 1.452620737 | E41: 0.9268354574
A42: 34000 | B42: =A42*'Summary Statistics'!$B$11-'Summary Statistics'!$C$11 -> 23909.9489 | C42: =SQRT((A42*'Summary Statistics'!$B$12)^2+'Summary Statistics'!$C$12^2-2*A42*'Summary Statistics'!$B$23*'Summary Statistics'!$B$12*'Summary Statistics'!$C$12) -> 16411.74021 | D42: 1.456880781 | E42: 0.927425354
A43: 35000 | B43: =A43*'Summary Statistics'!$B$11-'Summary Statistics'!$C$11 -> 24692.11238 | C43: =SQRT((A43*'Summary Statistics'!$B$12)^2+'Summary Statistics'!$C$12^2-2*A43*'Summary Statistics'!$B$23*'Summary Statistics'!$B$12*'Summary Statistics'!$C$12) -> 16902.13815 | D43: 1.460886911 | E43: 0.9279767604
A44: 36000 | B44: =A44*'Summary Statistics'!$B$11-'Summary Statistics'!$C$11 -> 25474.27587 | C44: =SQRT((A44*'Summary Statistics'!$B$12)^2+'Summary Statistics'!$C$12^2-2*A44*'Summary Statistics'!$B$23*'Summary Statistics'!$B$12*'Summary Statistics'!$C$12) -> 17392.60759 | D44: 1.464661106 | E44: 0.9284932994
A45: 37000 | B45: =A45*'Summary Statistics'!$B$11-'Summary Statistics'!$C$11 -> 26256.43936 | C45: =SQRT((A45*'Summary Statistics'!$B$12)^2+'Summary Statistics'!$C$12^2-2*A45*'Summary Statistics'!$B$23*'Summary Statistics'!$B$12*'Summary Statistics'!$C$12) -> 17883.14265 | D45: 1.468222889 | E45: 0.9289781556
A46: 38000 | B46: =A46*'Summary Statistics'!$B$11-'Summary Statistics'!$C$11 -> 27038.60285 | C46: =SQRT((A46*'Summary Statistics'!$B$12)^2+'Summary Statistics'!$C$12^2-2*A46*'Summary Statistics'!$B$23*'Summary Statistics'!$B$12*'Summary Statistics'!$C$12) -> 18373.73807 | D46: 1.471589654 | E46: 0.9294341394
A47: 39000 | B47: =A47*'Summary Statistics'!$B$11-'Summary Statistics'!$C$11 -> 27820.76633 | C47: =SQRT((A47*'Summary Statistics'!$B$12)^2+'Summary Statistics'!$C$12^2-2*A47*'Summary Statistics'!$B$23*'Summary Statistics'!$B$12*'Summary Statistics'!$C$12) -> 18864.38915 | D47: 1.474776952 | E47: 0.9298637402
A48: 40000 | B48: =A48*'Summary Statistics'!$B$11-'Summary Statistics'!$C$11 -> 28602.92982 | C48: =SQRT((A48*'Summary Statistics'!$B$12)^2+'Summary Statistics'!$C$12^2-2*A48*'Summary Statistics'!$B$23*'Summary Statistics'!$B$12*'Summary Statistics'!$C$12) -> 19355.09166 | D48: 1.477798728 | E48: 0.9302691705
A49: 41000 | B49: =A49*'Summary Statistics'!$B$11-'Summary Statistics'!$C$11 -> 29385.09331 | C49: =SQRT((A49*'Summary Statistics'!$B$12)^2+'Summary Statistics'!$C$12^2-2*A49*'Summary Statistics'!$B$23*'Summary Statistics'!$B$12*'Summary Statistics'!$C$12) -> 19845.84177 | D49: 1.48066752 | E49: 0.9306524034
A50: 42000 | B50: =A50*'Summary Statistics'!$B$11-'Summary Statistics'!$C$11 -> 30167.2568 | C50: =SQRT((A50*'Summary Statistics'!$B$12)^2+'Summary Statistics'!$C$12^2-2*A50*'Summary Statistics'!$B$23*'Summary Statistics'!$B$12*'Summary Statistics'!$C$12) -> 20336.63604 | D50: 1.483394635 | E50: 0.931015204
A51: 43000 | B51: =A51*'Summary Statistics'!$B$11-'Summary Statistics'!$C$11 -> 30949.42029 | C51: =SQRT((A51*'Summary Statistics'!$B$12)^2+'Summary Statistics'!$C$12^2-2*A51*'Summary Statistics'!$B$23*'Summary Statistics'!$B$12*'Summary Statistics'!$C$12) -> 20827.47135 | D51: 1.485990294 | E51: 0.9313591559
A52: 44000 | B52: =A52*'Summary Statistics'!$B$11-'Summary Statistics'!$C$11 -> 31731.58377 | C52: =SQRT((A52*'Summary Statistics'!$B$12)^2+'Summary Statistics'!$C$12^2-2*A52*'Summary Statistics'!$B$23*'Summary Statistics'!$B$12*'Summary Statistics'!$C$12) -> 21318.34487 | D52: 1.48846376 | E52: 0.9316856838
A53: 45000 | B53: =A53*'Summary Statistics'!$B$11-'Summary Statistics'!$C$11 -> 32513.74726 | C53: =SQRT((A53*'Summary Statistics'!$B$12)^2+'Summary Statistics'!$C$12^2-2*A53*'Summary Statistics'!$B$23*'Summary Statistics'!$B$12*'Summary Statistics'!$C$12) -> 21809.25402 | D53: 1.490823448 | E53: 0.931996073
A54: 46000 | B54: =A54*'Summary Statistics'!$B$11-'Summary Statistics'!$C$11 -> 33295.91075 | C54: =SQRT((A54*'Summary Statistics'!$B$12)^2+'Summary Statistics'!$C$12^2-2*A54*'Summary Statistics'!$B$23*'Summary Statistics'!$B$12*'Summary Statistics'!$C$12) -> 22300.19643 | D54: 1.493077016 | E54: 0.932291486
A55: 47000 | B55: =A55*'Summary Statistics'!$B$11-'Summary Statistics'!$C$11 -> 34078.07424 | C55: =SQRT((A55*'Summary Statistics'!$B$12)^2+'Summary Statistics'!$C$12^2-2*A55*'Summary Statistics'!$B$23*'Summary Statistics'!$B$12*'Summary Statistics'!$C$12) -> 22791.16997 | D55: 1.495231455 | E55: 0.9325729765
A56: 48000 | B56: =A56*'Summary Statistics'!$B$11-'Summary Statistics'!$C$11 -> 34860.23772 | C56: =SQRT((A56*'Summary Statistics'!$B$12)^2+'Summary Statistics'!$C$12^2-2*A56*'Summary Statistics'!$B$23*'Summary Statistics'!$B$12*'Summary Statistics'!$C$12) -> 23282.17266 | D56: 1.497293154 | E56: 0.9328415022
A57: 49000 | B57: =A57*'Summary Statistics'!$B$11-'Summary Statistics'!$C$11 -> 35642.40121 | C57: =SQRT((A57*'Summary Statistics'!$B$12)^2+'Summary Statistics'!$C$12^2-2*A57*'Summary Statistics'!$B$23*'Summary Statistics'!$B$12*'Summary Statistics'!$C$12) -> 23773.2027 | D57: 1.499267964 | E57: 0.9330979351
A58: 50000 | B58: =A58*'Summary Statistics'!$B$11-'Summary Statistics'!$C$11 -> 36424.5647 | C58: =SQRT((A58*'Summary Statistics'!$B$12)^2+'Summary Statistics'!$C$12^2-2*A58*'Summary Statistics'!$B$23*'Summary Statistics'!$B$12*'Summary Statistics'!$C$12) -> 24264.25842 | D58: 1.501161258 | E58: 0.9333430711
